Workbook

Sheet Admin
B3: Rate Impacts
C4: Final before retroactive | D4: Final after retroactive
B5: Residential 750 kWh | C5: ='Residential Rate Impact'!L45 -> 0.0234673848 | D5: ='Residential Rate Impact'!X45 -> 0.04517247763
B6: GS<50kW 2,500 kWh | C6: ='GS<50kW Rate Impact'!L45 -> 0.0227647615 | D6: ='GS<50kW Rate Impact'!X45 -> 0.04356868886
B7: GS>50kW to 2,999 kW | C7: ='GS>50kW Rate Impact'!L55 -> 0.02960187526 | D7: ='GS>50kW Rate Impact'!X55 -> 0.0502548055
B8: GS>3,000 kW | C8: ='GS>3000kW Rate Impact'!L55 -> 0.01640312524 | D8: ='GS>3000kW Rate Impact'!X55 -> 0.03217488737

Sheet Residential
B1: RESIDENTIAL SERVICE CLASSIFICATION | G1: RESIDENTIAL SERVICE CLASSIFICATION | P1: RESIDENTIAL SERVICE CLASSIFICATION
B2: Current Tariff Rates From IRM Rate Generator | G2: Final Tariff Rates before retroactivity From IRM Rate Generator | P2: Proposed Final Tariff Rates after retroactivity
E3: A | J3: B | L3: C = B - A | M3: D = C * 12/6 | N3: E = A + D | S3: E
B4: MONTHLY RATES AND CHARGES - Delivery Component | E4: Current | G4: MONTHLY RATES AND CHARGES - Delivery Component | J4: Proposed | L4: Differential | M4: Increment | N4: Retro Rate | P4: MONTHLY RATES AND CHARGES - Delivery Component | S4: Final
B6: Service Charge | D6: $ | E6: 26.8 | G6: Service Charge | I6: $ | J6: 27.76 | L6: =J6-E6 -> 0.96 | M6: =L6*12/6 -> 1.92 | N6: =E6+M6 -> 28.72 | P6: Service Charge | R6: $ | S6: =N6 -> 28.72
G8: Rate Rider for Recovery of Incremental Capital (2025) - effective until December 31, 2026 | I8: $ | J8: 0.36 | L8: =J8-E8 -> 0.36 | M8: =L8*12/6 -> 0.72 | N8: =E8+M8 -> 0.72 | P8: Rate Rider for Recovery of Incremental Capital (2025) - effective until December 31, 2026 | R8: $ | S8: =N8 -> 0.72
B10: Smart Metering Entity Charge - effective until December 31, 2027 | D10: $ | E10: 0.42 | G10: Smart Metering Entity Charge - effective until December 31, 2027 | I10: $ | J10: 0.42 | L10: 0 | M10: 0 | N10: 0.42 | P10: Smart Metering Entity Charge - effective until December 31, 2027 | R10: $ | S10: 0.42
B11: Low Voltage Service Rate | D11: $/kWh | E11: 0.0051 | G11: Low Voltage Service Rate | I11: $/kWh | J11: 0.0051 | L11: 0 | M11: 0 | N11: 0.0051 | P11: Low Voltage Service Rate | R11: $/kWh | S11: 0.0051
B13: Rate Rider for Disposition of Capacity Based Recovery Account (2024) - effective until December 31, 2024 Applicable only for Class B Customers | D13: $/kWh | E13: -0.0003
B14: Rate Rider for Disposition of Deferral/Variance Accounts (2024) - effective until December 31, 2024 | D14: $/kWh | E14: 0.0066
G16: Rate Rider for Disposition of Global Adjustment Account (2025) - effective until December 31, 2025 Applicable only for Non-RPP Customers | I16: $/kWh | J16: 0.0015 | L16: 0.0015 | M16: 0.003 | N16: 0.003 | P16: Rate Rider for Disposition of Global Adjustment Account (2025) - effective until December 31, 2025 Applicable only for Non-RPP Customers | R16: $/kWh | S16: 0.003
G17: Rate Rider for Disposition of Deferral/Variance Accounts (2025) - effective until December 31, 2025 | I17: $/kWh | J17: 0.0008 | L17: 0.0008 | M17: 0.0016 | N17: 0.0016 | P17: Rate Rider for Disposition of Deferral/Variance Accounts (2025) - effective until December 31, 2025 | R17: $/kWh | S17: 0.0016
G18: Rate Rider for Disposition of Capacity Based Recovery Account (2025) - effective until December 31, 2025 Applicable only for Class B Customers | I18: $/kWh | J18: 0.0002 | L18: 0.0002 | M18: 0.0004 | N18: 0.0004 | P18: Rate Rider for Disposition of Capacity Based Recovery Account (2025) - effective until December 31, 2025 Applicable only for Class B Customers | R18: $/kWh | S18: 0.0004
B19: Rate Rider for Disposition of Deferral/Variance Account 1550 - effective until December 31, 2026 | D19: $/kWh | E19: 0.0012 | G19: Rate Rider for Disposition of Deferral/Variance Account 1550 - effective until December 31, 2026 | I19: $/kWh | J19: 0.0012 | L19: 0 | M19: 0 | N19: 0.0012 | P19: Rate Rider for Disposition of Deferral/Variance Account 1550 - effective until December 31, 2026 | R19: $/kWh | S19: 0.0012
B21: Retail Transmission Rate - Network Service Rate | D21: $/kWh | E21: 0.0098 | G21: Retail Transmission Rate - Network Service Rate | I21: $/kWh | J21: 0.0104 | L21: 0.0006 | M21: 0.0012 | N21: 0.011 | P21: Retail Transmission Rate - Network Service Rate | R21: $/kWh | S21: 0.011
B22: Retail Transmission Rate - Line and Transformation Connection Service Rate | D22: $/kWh | E22: 0.008 | G22: Retail Transmission Rate - Line and Transformation Connection Service Rate | I22: $/kWh | J22: 0.0083 | L22: 0.0003 | M22: 0.0006 | N22: 0.0086 | P22: Retail Transmission Rate - Line and Transformation Connection Service Rate | R22: $/kWh | S22: 0.0086

Sheet GS<50kW
B1: GENERAL SERVICE LESS THAN 50 KW SERVICE CLASSIFICATION | G1: GENERAL SERVICE LESS THAN 50 KW SERVICE CLASSIFICATION | P1: GENERAL SERVICE LESS THAN 50 KW SERVICE CLASSIFICATION
B2: Current Tariff Rates From IRM Rate Generator | G2: Final Tariff Rates before retroactivity From IRM Rate Generator | P2: Proposed Final Tariff Rates after retroactivity
E3: A | J3: B | L3: C = B - A | M3: D = C * 12/6 | N3: E = A + D | S3: E
B4: MONTHLY RATES AND CHARGES - Delivery Component | E4: Current | G4: MONTHLY RATES AND CHARGES - Delivery Component | J4: Proposed | L4: Differential | M4: Increment | N4: Retro Rate | P4: MONTHLY RATES AND CHARGES - Delivery Component | S4: Final
B6: Service Charge | D6: $ | E6: 27.71 | G6: Service Charge | I6: $ | J6: 28.71 | L6: =J6-E6 -> 1 | M6: =L6*12/6 -> 2 | N6: =E6+M6 -> 29.71 | P6: Service Charge | R6: $ | S6: =N6 -> 29.71
G8: Rate Rider for Recovery of Incremental Capital (2025) - effective until December 31, 2026 | I8: $ | J8: 0.37 | L8: =J8-E8 -> 0.37 | M8: =L8*12/6 -> 0.74 | N8: =E8+M8 -> 0.74 | P8: Rate Rider for Recovery of Incremental Capital (2025) - effective until December 31, 2026 | R8: $ | S8: =N8 -> 0.74
B10: Smart Metering Entity Charge - effective until December 31, 2027 | D10: $ | E10: 0.42 | G10: Smart Metering Entity Charge - effective until December 31, 2027 | I10: $ | J10: 0.42 | L10: 0 | M10: 0 | N10: 0.42 | P10: Smart Metering Entity Charge - effective until December 31, 2027 | R10: $ | S10: 0.42
B12: Distribution Volumetric Rate | D12: $/kWh | E12: 0.0102 | G12: Distribution Volumetric Rate | I12: $/kWh | J12: 0.0106 | L12: 0.0004 | M12: 0.0008 | N12: 0.011 | P12: Distribution Volumetric Rate | R12: $/kWh | S12: 0.011
B14: Low Voltage Service Rate | D14: $/kWh | E14: 0.0046 | G14: Low Voltage Service Rate | I14: $/kWh | J14: 0.0046 | L14: 0 | M14: 0 | N14: 0.0046 | P14: Low Voltage Service Rate | R14: $/kWh | S14: 0.0046
B16: Rate Rider for Disposition of Capacity Based Recovery Account (2024) - effective until December 31, 2024 Applicable only for Class B Customers | D16: $/kWh | E16: -0.0003
B17: Rate Rider for Disposition of Deferral/Variance Accounts (2024) - effective until June 30, 2024 | D17: $/kWh | E17: 0.0069
G19: Rate Rider for Disposition of Global Adjustment Account (2025) - effective until December 31, 2025 Applicable only for Non-RPP Customers | I19: $/kWh | J19: 0.0015 | L19: 0.0015 | M19: 0.003 | N19: 0.003 | P19: Rate Rider for Disposition of Global Adjustment Account (2025) - effective until December 31, 2025 Applicable only for Non-RPP Customers | R19: $/kWh | S19: 0.003
G20: Rate Rider for Disposition of Deferral/Variance Accounts (2025) - effective until December 31, 2025 | I20: $/kWh | J20: 0.001 | L20: 0.001 | M20: 0.002 | N20: 0.002 | P20: Rate Rider for Disposition of Deferral/Variance Accounts (2025) - effective until December 31, 2025 | R20: $/kWh | S20: 0.002
B22: Rate Rider for Disposition of Deferral/Variance Account 1550 - effective until December 31, 2026 | D22: $/kWh | E22: 0.0012 | G22: Rate Rider for Disposition of Deferral/Variance Account 1550 - effective until December 31, 2026 | I22: $/kWh | J22: 0.0012 | L22: 0 | M22: 0 | N22: 0.0012 | P22: Rate Rider for Disposition of Deferral/Variance Account 1550 - effective until December 31, 2026 | R22: $/kWh | S22: 0.0012
G24: Rate Rider for Disposition of Capacity Based Recovery Account (2025) - effective until December 31, 2025 Applicable only for Class B Customers | I24: $/kWh | J24: 0.0002 | L24: 0.0002 | M24: 0.0004 | N24: 0.0004 | P24: Rate Rider for Disposition of Capacity Based Recovery Account (2025) - effective until December 31, 2025 Applicable only for Class B Customers | R24: $/kWh | S24: 0.0004
G25: Rate Rider for Recovery of Incremental Capital (2025) - effective until December 31, 2026 | I25: $/kWh | J25: 0.0001 | L25: 0.0001 | M25: 0.0002 | N25: 0.0002 | P25: Rate Rider for Recovery of Incremental Capital (2025) - effective until December 31, 2026 | R25: $/kWh | S25: 0.0002
B27: Retail Transmission Rate - Network Service Rate | D27: $/kWh | E27: 0.009 | G27: Retail Transmission Rate - Network Service Rate | I27: $/kWh | J27: 0.0096 | L27: 0.0006 | M27: 0.0012 | N27: 0.0102 | P27: Retail Transmission Rate - Network Service Rate | R27: $/kWh | S27: 0.0102
B28: Retail Transmission Rate - Line and Transformation Connection Service Rate | D28: $/kWh | E28: 0.0072 | G28: Retail Transmission Rate - Line and Transformation Connection Service Rate | I28: $/kWh | J28: 0.0075 | L28: 0.0003 | M28: 0.0006 | N28: 0.0078 | P28: Retail Transmission Rate - Line and Transformation Connection Service Rate | R28: $/kWh | S28: 0.0078

Sheet GS>50 to 2999 kW
B1: GENERAL SERVICE 50 TO 2,999 KW SERVICE CLASSIFICATION | G1: GENERAL SERVICE 50 TO 2,999 KW SERVICE CLASSIFICATION | P1: GENERAL SERVICE 50 TO 2,999 KW SERVICE CLASSIFICATION
B2: Current Tariff Rates From IRM Rate Generator | G2: Final Tariff Rates before retroactivity From IRM Rate Generator | P2: Proposed Final Tariff Rates after retroactivity
E3: A | J3: B | L3: C = B - A | M3: D = C * 12/6 | N3: E = A + D | S3: E
B4: MONTHLY RATES AND CHARGES - Delivery Component | E4: Current | G4: MONTHLY RATES AND CHARGES - Delivery Component | J4: Proposed | L4: Differential | M4: Increment | N4: Retro Rate | P4: MONTHLY RATES AND CHARGES - Delivery Component | S4: Final
B6: Service Charge | D6: $ | E6: 100.83 | G6: Service Charge | I6: $ | J6: 104.46 | L6: =J6-E6 -> 3.63 | M6: =L6*12/6 -> 7.26 | N6: =E6+M6 -> 108.09 | P6: Service Charge | R6: $ | S6: =N6 -> 108.09
G7: Rate Rider for Recovery of Incremental Capital (2025) - effective until December 31, 2026 | I7: $ | J7: 1.33 | L7: =J7-E7 -> 1.33 | M7: =L7*12/6 -> 2.66 | N7: =E7+M7 -> 2.66 | P7: Rate Rider for Recovery of Incremental Capital (2025) - effective until December 31, 2026 | R7: $ | S7: =N7 -> 2.66
B8: Distribution Volumetric Rate | D8: $/kW | E8: 4.0251 | G8: Distribution Volumetric Rate | I8: $/kW | J8: 4.17 | L8: 0.1449 | M8: 0.2898 | N8: 4.3149 | P8: Distribution Volumetric Rate | R8: $/kW | S8: 4.3149
B10: Low Voltage Service Rate | D10: $/kW | E10: 1.842 | G10: Low Voltage Service Rate | I10: $/kW | J10: 1.842 | L10: 0 | M10: 0 | N10: 1.842 | P10: Low Voltage Service Rate | R10: $/kW | S10: 1.842
B12: Rate Rider for Disposition of Capacity Based Recovery Account (2024) - effective until December 31, 2024 Applicable only for Class B Customers | D12: $/kW | E12: -0.0935
B13: Rate Rider for Disposition of Deferral/Variance Accounts (2024) - effective until June 30, 2024 | D13: $/kW | E13: 2.7601
G15: Rate Rider for Disposition of Global Adjustment Account (2025) - effective until December 31, 2025 Applicable only for Non-RPP Customers | I15: $/kWh | J15: 0.0015 | L15: 0.0015 | M15: 0.003 | N15: 0.003 | P15: Rate Rider for Disposition of Global Adjustment Account (2025) - effective until December 31, 2025 Applicable only for Non-RPP Customers | R15: $/kWh | S15: 0.003
G16: Rate Rider for Disposition of Deferral/Variance Accounts (2025) - effective until December 31, 2025 | I16: $/kW | J16: 0.3967 | L16: 0.3967 | M16: 0.7934 | N16: 0.7934 | P16: Rate Rider for Disposition of Deferral/Variance Accounts (2025) - effective until December 31, 2025 | R16: $/kW | S16: 0.7934
G17: Rate Rider for Disposition of Capacity Based Recovery Account (2025) - effective until December 31, 2025 Applicable only for Class B Customers | I17: $/kW | J17: 0.0615 | L17: 0.0615 | M17: 0.123 | N17: 0.123 | P17: Rate Rider for Disposition of Capacity Based Recovery Account (2025) - effective until December 31, 2025 Applicable only for Class B Customers | R17: $/kW | S17: 0.123
B18: Rate Rider for Disposition of Deferral/Variance Account 1550 - effective until December 31, 2026 | D18: $/kW | E18: 0.4584 | G18: Rate Rider for Disposition of Deferral/Variance Account 1550 - effective until December 31, 2026 | I18: $/kW | J18: 0.4584 | L18: 0 | M18: 0 | N18: 0.4584 | P18: Rate Rider for Disposition of Deferral/Variance Account 1550 - effective until December 31, 2026 | R18: $/kW | S18: 0.4584
G19: Rate Rider for Recovery of Incremental Capital (2025) - effective until December 31, 2026 | I19: $/kW | J19: 0.0533 | L19: 0.0533 | M19: 0.1066 | N19: 0.1066 | P19: Rate Rider for Recovery of Incremental Capital (2025) - effective until December 31, 2026 | R19: $/kW | S19: 0.1066
B21: Retail Transmission Rate - Network Service Rate | D21: $/kW | E21: 3.6153 | G21: Retail Transmission Rate - Network Service Rate | I21: $/kW | J21: 3.8496 | L21: 0.2343 | M21: 0.4686 | N21: 4.0839 | P21: Retail Transmission Rate - Network Service Rate | R21: $/kW | S21: 4.0839
B22: Retail Transmission Rate - Line and Transformation Connection Service Rate | D22: $/kW | E22: 2.8806 | G22: Retail Transmission Rate - Line and Transformation Connection Service Rate | I22: $/kW | J22: 2.9809 | L22: 0.1003 | M22: 0.2006 | N22: 3.0812 | P22: Retail Transmission Rate - Line and Transformation Connection Service Rate | R22: $/kW | S22: 3.0812

Sheet GS>3000 kW
B1: GENERAL SERVICE 3,000 TO 4,999 KW SERVICE CLASSIFICATION | G1: =B1 -> GENERAL SERVICE 3,000 TO 4,999 KW SERVICE CLASSIFICATION | P1: =G1 -> GENERAL SERVICE 3,000 TO 4,999 KW SERVICE CLASSIFICATION
B2: Current Tariff Rates From IRM Rate Generator | G2: Final Tariff Rates before retroactivity From IRM Rate Generator | P2: Proposed Final Tariff Rates after retroactivity
E3: A | J3: B | L3: C = B - A | M3: D = C * 12/6 | N3: E = A + D | S3: E
B4: MONTHLY RATES AND CHARGES - Delivery Component | E4: Current | G4: MONTHLY RATES AND CHARGES - Delivery Component | J4: Proposed | L4: Differential | M4: Increment | N4: Retro Rate | P4: MONTHLY RATES AND CHARGES - Delivery Component | S4: Final
B6: Service Charge | D6: $ | E6: 6037.86 | G6: Service Charge | I6: $ | J6: 6255.22 | L6: =J6-E6 -> 217.36 | M6: =L6*12/6 -> 434.72 | N6: =E6+M6 -> 6472.58 | P6: Service Charge | R6: $ | S6: =N6 -> 6472.58
G7: Rate Rider for Recovery of Incremental Capital (2025) - effective until December 31, 2026 | I7: $ | J7: 79.46 | L7: =J7-E7 -> 79.46 | M7: =L7*12/6 -> 158.92 | N7: =E7+M7 -> 158.92 | P7: Rate Rider for Recovery of Incremental Capital (2025) - effective until December 31, 2026 | R7: $ | S7: =N7 -> 158.92
B8: Distribution Volumetric Rate | D8: $/kW | E8: 2.235 | G8: Distribution Volumetric Rate | I8: $/kW | J8: 2.3155 | L8: 0.0805 | M8: 0.161 | N8: 2.396 | P8: Distribution Volumetric Rate | R8: $/kW | S8: 2.396
B9: Low Voltage Service Rate | D9: $/kW | E9: 2.1726 | G9: Low Voltage Service Rate | I9: $/kW | J9: 2.1726 | L9: 0 | M9: 0 | N9: 2.1726 | P9: Low Voltage Service Rate | R9: $/kW | S9: 2.1726
B10: Rate Rider for Disposition of Deferral/Variance Accounts (2024) - effective until December 31, 2024 | D10: $/kW | E10: 3.7376
G11: Rate Rider for Disposition of Deferral/Variance Accounts (2025) - effective until December 31, 2025 | I11: $/kW | J11: 0.4535 | L11: 0.4535 | M11: 0.907 | N11: 0.907 | P11: Rate Rider for Disposition of Deferral/Variance Accounts (2025) - effective until December 31, 2025 | R11: $/kW | S11: 0.907
B12: Rate Rider for Disposition of Deferral/Variance Accounts (2024) - effective until June 30, 2024 | D12: $/kW | E12: 0.5004 | G12: Rate Rider for Disposition of Deferral/Variance Account 1550 - effective until December 31, 2026 | I12: $/kW | J12: 0.5004 | L12: 0 | M12: 0 | N12: 0.5004 | P12: Rate Rider for Disposition of Deferral/Variance Account 1550 - effective until December 31, 2026 | R12: $/kW | S12: 0.5004
G13: Rate Rider for Recovery of Incremental Capital (2025) - effective until December 31, 2026 | I13: $/kW | J13: 0.0296 | L13: 0.0296 | M13: 0.0592 | N13: 0.0592 | P13: Rate Rider for Recovery of Incremental Capital (2025) - effective until December 31, 2026 | R13: $/kW | S13: 0.0592
B15: Retail Transmission Rate - Network Service Rate | D15: $/kW | E15: 4.0438 | G15: Retail Transmission Rate - Network Service Rate | I15: $/kW | J15: 4.3058 | L15: 0.262 | M15: 0.524 | N15: 4.5678 | P15: Retail Transmission Rate - Network Service Rate | R15: $/kW | S15: 4.5678
B16: Retail Transmission Rate - Line and Transformation Connection Service Rate | D16: $/kW | E16: 3.3976 | G16: Retail Transmission Rate - Line and Transformation Connection Service Rate | I16: $/kW | J16: 3.516 | L16: 0.1184 | M16: 0.2368 | N16: 3.6344 | P16: Retail Transmission Rate - Line and Transformation Connection Service Rate | R16: $/kW | S16: 3.6344

Sheet UnMetered
B1: UNMETERED SCATTERED LOAD SERVICE CLASSIFICATION | G1: =B1 -> UNMETERED SCATTERED LOAD SERVICE CLASSIFICATION | P1: =G1 -> UNMETERED SCATTERED LOAD SERVICE CLASSIFICATION
B2: Current Tariff Rates From IRM Rate Generator | G2: Final Tariff Rates before retroactivity From IRM Rate Generator | P2: Proposed Final Tariff Rates after retroactivity
E3: A | J3: B | L3: C = B - A | M3: D = C * 12/6 | N3: E = A + D | S3: E
B4: MONTHLY RATES AND CHARGES - Delivery Component | E4: Current | G4: MONTHLY RATES AND CHARGES - Delivery Component | J4: Proposed | L4: Differential | M4: Increment | N4: Retro Rate | P4: MONTHLY RATES AND CHARGES - Delivery Component | S4: Final
B6: Service Charge (per customer) | D6: $ | E6: 10.76 | G6: Service Charge (per customer) | I6: $ | J6: 11.15 | L6: =J6-E6 -> 0.39 | M6: =L6*12/6 -> 0.78 | N6: =E6+M6 -> 11.54 | P6: Service Charge (per customer) | R6: $ | S6: =N6 -> 11.54
G8: Rate Rider for Recovery of Incremental Capital (2025) - effective until December 31, 2026 | I8: $ | J8: 0.14 | L8: =J8-E8 -> 0.14 | M8: =L8*12/6 -> 0.28 | N8: =E8+M8 -> 0.28 | P8: Rate Rider for Recovery of Incremental Capital (2025) - effective until December 31, 2026 | R8: $ | S8: =N8 -> 0.28
B10: Distribution Volumetric Rate | D10: $/kWh | E10: 0.016 | G10: Distribution Volumetric Rate | I10: $/kWh | J10: 0.0166 | L10: 0.0006 | M10: 0.0012 | N10: 0.0172 | P10: Distribution Volumetric Rate | R10: $/kWh | S10: 0.0172
B11: Low Voltage Service Rate | D11: $/kWh | E11: 0.0057 | G11: Low Voltage Service Rate | I11: $/kWh | J11: 0.0057 | L11: 0 | M11: 0 | N11: 0.0057 | P11: Low Voltage Service Rate | R11: $/kWh | S11: 0.0057
B12: Rate Rider for Disposition of Capacity Based Recovery Account (2024) - effective until December 31, 2024 Applicable only for Class B Customers | D12: $/kWh | E12: -0.0003
B13: Rate Rider for Disposition of Deferral/Variance Accounts (2024) - effective until June 30, 2024 | D13: $/kWh | E13: 0.007
G14: Rate Rider for Disposition of Global Adjustment Account (2025) - effective until December 31, 2025 Applicable only for Non-RPP Customers | I14: $/kWh | J14: 0.0015 | L14: 0.0015 | M14: 0.003 | N14: 0.003 | P14: Rate Rider for Disposition of Global Adjustment Account (2025) - effective until December 31, 2025 Applicable only for Non-RPP Customers | R14: $/kWh | S14: 0.003
G15: Rate Rider for Disposition of Deferral/Variance Accounts (2025) - effective until December 31, 2025 | I15: $/kWh | J15: 0.0011 | L15: 0.0011 | M15: 0.0022 | N15: 0.0022 | P15: Rate Rider for Disposition of Deferral/Variance Accounts (2025) - effective until December 31, 2025 | R15: $/kWh | S15: 0.0022
G16: Rate Rider for Disposition of Capacity Based Recovery Account (2025) - effective until December 31, 2025 Applicable only for Class B Customers | I16: $/kWh | J16: 0.0002 | L16: 0.0002 | M16: 0.0004 | N16: 0.0004 | P16: Rate Rider for Disposition of Capacity Based Recovery Account (2025) - effective until December 31, 2025 Applicable only for Class B Customers | R16: $/kWh | S16: 0.0004
B17: Rate Rider for Disposition of Deferral/Variance Account 1550 - effective until December 31, 2026 | D17: $/kWh | E17: 0.0012 | G17: Rate Rider for Disposition of Deferral/Variance Account 1550 - effective until December 31, 2026 | I17: $/kWh | J17: 0.0012 | L17: 0 | M17: 0 | N17: 0.0012 | P17: Rate Rider for Disposition of Deferral/Variance Account 1550 - effective until December 31, 2026 | R17: $/kWh | S17: 0.0012
G18: Rate Rider for Recovery of Incremental Capital (2025) - effective until December 31, 2026 | I18: $/kWh | J18: 0.0002 | L18: 0.0002 | M18: 0.0004 | N18: 0.0004 | P18: Rate Rider for Recovery of Incremental Capital (2025) - effective until December 31, 2026 | R18: $/kWh | S18: 0.0004
B20: Retail Transmission Rate - Network Service Rate | D20: $/kWh | E20: 0.0102 | G20: Retail Transmission Rate - Network Service Rate | I20: $/kWh | J20: 0.0109 | L20: 0.0007 | M20: 0.0014 | N20: 0.0116 | P20: Retail Transmission Rate - Network Service Rate | R20: $/kWh | S20: 0.0116
B21: Retail Transmission Rate - Line and Transformation Connection Service Rate | D21: $/kWh | E21: 0.0088 | G21: Retail Transmission Rate - Line and Transformation Connection Service Rate | I21: $/kWh | J21: 0.0091 | L21: 0.0003 | M21: 0.0006 | N21: 0.0094 | P21: Retail Transmission Rate - Line and Transformation Connection Service Rate | R21: $/kWh | S21: 0.0094

Sheet Sentinel
B1: SENTINEL LIGHTING SERVICE CLASSIFICATION | G1: =B1 -> SENTINEL LIGHTING SERVICE CLASSIFICATION | P1: =G1 -> SENTINEL LIGHTING SERVICE CLASSIFICATION
B2: Current Tariff Rates From IRM Rate Generator | G2: Final Tariff Rates before retroactivity From IRM Rate Generator | P2: Proposed Final Tariff Rates after retroactivity
E3: A | J3: B | L3: C = B - A | M3: D = C * 12/6 | N3: E = A + D | S3: E
B4: MONTHLY RATES AND CHARGES - Delivery Component | E4: Current | G4: MONTHLY RATES AND CHARGES - Delivery Component | J4: Proposed | L4: Differential | M4: Increment | N4: Retro Rate | P4: MONTHLY RATES AND CHARGES - Delivery Component | S4: Final
B6: Service Charge (per connection) | D6: $ | E6: 6.49 | G6: Service Charge (per connection) | I6: $ | J6: 6.72 | L6: =J6-E6 -> 0.23 | M6: =L6*12/6 -> 0.46 | N6: =E6+M6 -> 6.95 | P6: Service Charge (per connection) | R6: $ | S6: =N6 -> 6.95
G8: Rate Rider for Recovery of Incremental Capital (2025) - effective until December 31, 2026 | I8: $ | J8: 0.09 | L8: =J8-E8 -> 0.09 | M8: =L8*12/6 -> 0.18 | N8: =E8+M8 -> 0.18 | P8: Rate Rider for Recovery of Incremental Capital (2025) - effective until December 31, 2026 | R8: $ | S8: =N8 -> 0.18
B10: Distribution Volumetric Rate | D10: $/kW | E10: 14.7818 | G10: Distribution Volumetric Rate | I10: $/kW | J10: 15.3139 | L10: 0.5321 | M10: 1.0642 | N10: 15.846 | P10: Distribution Volumetric Rate | R10: $/kW | S10: 15.846
B11: Low Voltage Service Rate | D11: $/kW | E11: 1.4538 | G11: Low Voltage Service Rate | I11: $/kW | J11: 1.4538 | L11: 0 | M11: 0 | N11: 1.4538 | P11: Low Voltage Service Rate | R11: $/kW | S11: 1.4538
B13: Rate Rider for Disposition of Capacity Based Recovery Account (2024) - effective until December 31, 2024 Applicable only for Class B Customers | D13: $/kW | E13: -0.0905
B14: Rate Rider for Disposition of Deferral/Variance Accounts (2024) - effective until June 30, 2024 | D14: $/kW | E14: 2.5331
G16: Rate Rider for Disposition of Global Adjustment Account (2025) - effective until December 31, 2025 Applicable only for Non-RPP Customers | I16: $/kWh | J16: 0.0015 | L16: 0.0015 | M16: 0.003 | N16: 0.003 | P16: Rate Rider for Disposition of Global Adjustment Account (2025) - effective until December 31, 2025 Applicable only for Non-RPP Customers | R16: $/kWh | S16: 0.003
G17: Rate Rider for Disposition of Deferral/Variance Accounts (2025) - effective until December 31, 2025 | I17: $/kW | J17: 0.3783 | L17: 0.3783 | M17: 0.7566 | N17: 0.7566 | P17: Rate Rider for Disposition of Deferral/Variance Accounts (2025) - effective until December 31, 2025 | R17: $/kW | S17: 0.7566
G18: Rate Rider for Disposition of Capacity Based Recovery Account (2025) - effective until December 31, 2025 Applicable only for Class B Customers | I18: $/kW | J18: 0.0581 | L18: 0.0581 | M18: 0.1162 | N18: 0.1162 | P18: Rate Rider for Disposition of Capacity Based Recovery Account (2025) - effective until December 31, 2025 Applicable only for Class B Customers | R18: $/kW | S18: 0.1162
B19: Rate Rider for Disposition of Deferral/Variance Account 1550 - effective until December 31, 2026 | D19: $/kW | E19: 0.4035 | G19: Rate Rider for Disposition of Deferral/Variance Account 1550 - effective until December 31, 2026 | I19: $/kW | J19: 0.4035 | L19: 0 | M19: 0 | N19: 0.4035 | P19: Rate Rider for Disposition of Deferral/Variance Account 1550 - effective until December 31, 2026 | R19: $/kW | S19: 0.4035
G20: Rate Rider for Recovery of Incremental Capital (2025) - effective until December 31, 2026 | I20: $/kW | J20: 0.1967 | L20: 0.1967 | M20: 0.3934 | N20: 0.3934 | P20: Rate Rider for Recovery of Incremental Capital (2025) - effective until December 31, 2026 | R20: $/kW | S20: 0.3934
B22: Retail Transmission Rate - Network Service Rate | D22: $/kW | E22: 2.7402 | G22: Retail Transmission Rate - Network Service Rate | I22: $/kW | J22: 2.9178 | L22: 0.1776 | M22: 0.3552 | N22: 3.0954 | P22: Retail Transmission Rate - Network Service Rate | R22: $/kW | S22: 3.0954
B23: Retail Transmission Rate - Line and Transformation Connection Service Rate | D23: $/kW | E23: 2.2735 | G23: Retail Transmission Rate - Line and Transformation Connection Service Rate | I23: $/kW | J23: 2.3526 | L23: 0.0791 | M23: 0.1582 | N23: 2.4317 | P23: Retail Transmission Rate - Line and Transformation Connection Service Rate | R23: $/kW | S23: 2.4317

Sheet StreetLight
B1: STREET LIGHTING SERVICE CLASSIFICATION | G1: =B1 -> STREET LIGHTING SERVICE CLASSIFICATION | P1: =G1 -> STREET LIGHTING SERVICE CLASSIFICATION
B2: Current Tariff Rates From IRM Rate Generator | G2: Final Tariff Rates before retroactivity From IRM Rate Generator | P2: Proposed Final Tariff Rates after retroactivity
E3: A | J3: B | L3: C = B - A | M3: D = C * 12/6 | N3: E = A + D | S3: E
B4: MONTHLY RATES AND CHARGES - Delivery Component | E4: Current | G4: MONTHLY RATES AND CHARGES - Delivery Component | J4: Proposed | L4: Differential | M4: Increment | N4: Retro Rate | P4: MONTHLY RATES AND CHARGES - Delivery Component | S4: Final
B6: Service Charge (per device) | D6: $ | E6: 2.04 | G6: Service Charge (per device) | I6: $ | J6: 2.11 | L6: =J6-E6 -> 0.07 | M6: =L6*12/6 -> 0.14 | N6: =E6+M6 -> 2.18 | P6: Service Charge (per device) | R6: $ | S6: =N6 -> 2.18
G8: Rate Rider for Recovery of Incremental Capital (2025) - effective until December 31, 2026 | I8: $ | J8: 0.03 | L8: =J8-E8 -> 0.03 | M8: =L8*12/6 -> 0.06 | N8: =E8+M8 -> 0.06 | P8: Rate Rider for Recovery of Incremental Capital (2025) - effective until December 31, 2026 | R8: $ | S8: =N8 -> 0.06
B10: Distribution Volumetric Rate | D10: $/kW | E10: 5.3511 | G10: Distribution Volumetric Rate | I10: $/kW | J10: 5.5437 | L10: 0.1926 | M10: 0.3852 | N10: 5.7363 | P10: Distribution Volumetric Rate | R10: $/kW | S10: 5.7363
B11: Low Voltage Service Rate | D11: $/kW | E11: 1.424 | G11: Low Voltage Service Rate | I11: $/kW | J11: 1.424 | L11: 0 | M11: 0 | N11: 1.424 | P11: Low Voltage Service Rate | R11: $/kW | S11: 1.424
B13: Rate Rider for Disposition of Capacity Based Recovery Account (2024) - effective until December 31, 2024 Applicable only for Class B Customers | D13: $/kW | E13: -0.0931
B14: Rate Rider for Disposition of Deferral/Variance Accounts (2024) - effective until June 30, 2024 | D14: $/kW | E14: 2.5942
G16: Rate Rider for Disposition of Global Adjustment Account (2025) - effective until December 31, 2025 Applicable only for Non-RPP Customers | I16: $/kWh | J16: 0.0015 | L16: 0.0015 | M16: 0.003 | N16: 0.003 | P16: Rate Rider for Disposition of Global Adjustment Account (2025) - effective until December 31, 2025 Applicable only for Non-RPP Customers | R16: $/kWh | S16: 0.003
G17: Rate Rider for Disposition of Deferral/Variance Accounts (2025) - effective until December 31, 2025 | I17: $/kW | J17: 0.3875 | L17: 0.3875 | M17: 0.775 | N17: 0.775 | P17: Rate Rider for Disposition of Deferral/Variance Accounts (2025) - effective until December 31, 2025 | R17: $/kW | S17: 0.775
G18: Rate Rider for Disposition of Capacity Based Recovery Account (2025) - effective until December 31, 2025 Applicable only for Class B Customers | I18: $/kW | J18: 0.0631 | L18: 0.0631 | M18: 0.1262 | N18: 0.1262 | P18: Rate Rider for Disposition of Capacity Based Recovery Account (2025) - effective until December 31, 2025 Applicable only for Class B Customers | R18: $/kW | S18: 0.1262
B19: Rate Rider for Disposition of Deferral/Variance Account 1550 - effective until December 31, 2026 | D19: $/kW | E19: 0.4522 | G19: Rate Rider for Disposition of Deferral/Variance Account 1550 - effective until December 31, 2026 | I19: $/kW | J19: 0.4522 | L19: 0 | M19: 0 | N19: 0.4522 | P19: Rate Rider for Disposition of Deferral/Variance Account 1550 - effective until December 31, 2026 | R19: $/kW | S19: 0.4522
G20: Rate Rider for Recovery of Incremental Capital (2025) - effective until December 31, 2026 | I20: $/kW | J20: 0.071 | L20: 0.071 | M20: 0.142 | N20: 0.142 | P20: Rate Rider for Recovery of Incremental Capital (2025) - effective until December 31, 2026 | R20: $/kW | S20: 0.142
B22: Retail Transmission Rate - Network Service Rate | D22: $/kW | E22: 2.7269 | G22: Retail Transmission Rate - Network Service Rate | I22: $/kW | J22: 2.9036 | L22: =J22-E22 -> 0.1767 | M22: =L22*12/6 -> 0.3534 | N22: =E22+M22 -> 3.0803 | P22: Retail Transmission Rate - Network Service Rate | R22: $/kW | S22: 3.0803
B23: Retail Transmission Rate - Line and Transformation Connection Service Rate | D23: $/kW | E23: 2.2271 | G23: Retail Transmission Rate - Line and Transformation Connection Service Rate | I23: $/kW | J23: 2.3047 | L23: =J23-E23 -> 0.0776 | M23: =L23*12/6 -> 0.1552 | N23: =E23+M23 -> 2.3823 | P23: Retail Transmission Rate - Line and Transformation Connection Service Rate | R23: $/kW | S23: 2.3823

Sheet Residential Rate Impact
C1: Final before retroactive | O1: Final after retroactive
C3: Customer Class: | D3: RESIDENTIAL SERVICE CLASSIFICATION | O3: Customer Class: | P3: RESIDENTIAL SERVICE CLASSIFICATION
C4: RPP / Non-RPP: | D4: RPP | O4: RPP / Non-RPP: | P4: RPP
C5: Consumption | D5: 750 | E5: kWh | O5: Consumption | P5: 750 | Q5: kWh
C6: Demand | D6: 0 | E6: kW | O6: Demand | P6: 0 | Q6: kW
C7: Current Loss Factor | D7: 1.0388 | O7: Current Loss Factor | P7: 1.0388
C8: Proposed/Approved Loss Factor | D8: 1.0388 | O8: Proposed/Approved Loss Factor | P8: 1.0388
E10: Current OEB-Approved | H10: Proposed | K10: Impact | Q10: Current OEB-Approved | T10: Proposed | W10: Impact
E11: Rate | F11: Volume | G11: Charge | H11: Rate | I11: Volume | J11: Charge | K11: $ Change | L11: % Change | Q11: Rate | R11: Volume | S11: Charge | T11: Rate | U11: Volume | V11: Charge | W11: $ Change | X11: % Change
E12: ($) | G12: ($) | H12: ($) | J12: ($) | Q12: ($) | S12: ($) | T12: ($) | V12: ($)
C13: Monthly Service Charge | E13: 26.8 | F13: 1 | G13: =E13*F13 -> 26.8 | H13: 27.76 | I13: 1 | J13: =H13*I13 -> 27.76 | K13: =J13-G13 -> 0.96 | L13: =IF(G13<>0,K13/G13,0) -> 0.03582089552 | O13: Monthly Service Charge | Q13: 26.8 | R13: 1 | S13: =Q13*R13 -> 26.8 | T13: =Residential!S6 -> 28.72 | U13: 1 | V13: =T13*U13 -> 28.72 | W13: =V13-S13 -> 1.92 | X13: =IF(S13<>0,W13/S13,0) -> 0.07164179104
C14: Distribution Volumetric Rate | E14: 0 | F14: 750 | G14: =E14*F14 -> 0 | H14: 0 | I14: 750 | J14: =H14*I14 -> 0 | K14: =J14-G14 -> 0 | L14: 0 | O14: Distribution Volumetric Rate | Q14: 0 | R14: 750 | S14: =Q14*R14 -> 0 | T14: 0 | U14: 750 | V14: 0 | W14: =V14-S14 -> 0 | X14: 0
C15: RRRP Credit | F15: 750 | G15: 0 | I15: 750 | J15: 0 | K15: 0 | L15: 0 | O15: RRRP Credit | R15: 750 | S15: 0 | U15: 750 | V15: 0 | W15: 0 | X15: 0
C16: DRP Adjustment | F16: 750 | G16: 0 | I16: 750 | J16: 0 | K16: 0 | L16: 0 | O16: DRP Adjustment | R16: 750 | S16: 0 | U16: 750 | V16: 0 | W16: 0 | X16: 0
C17: Fixed Rate Riders | E17: 0 | F17: 1 | G17: 0 | H17: 0.36 | I17: 1 | J17: 0.36 | K17: 0.36 | L17: 0 | O17: Fixed Rate Riders | Q17: 0 | R17: 1 | S17: 0 | T17: =Residential!S8 -> 0.72 | U17: 1 | V17: 0.72 | W17: 0.72 | X17: 0
C18: Volumetric Rate Riders | E18: 0 | F18: 750 | G18: 0 | H18: 0 | I18: 750 | J18: 0 | K18: 0 | L18: 0 | O18: Volumetric Rate Riders | Q18: 0 | R18: 750 | S18: 0 | T18: 0 | U18: 750 | V18: 0 | W18: 0 | X18: 0
B19: 1 | C19: Sub-Total A (excluding pass through) | G19: =SUM(G13:G18) -> 26.8 | J19: =SUM(J13:J18) -> 28.12 | K19: 1.32 | L19: 0.04925373134 | N19: 1 | O19: Sub-Total A (excluding pass through) | S19: =SUM(S13:S18) -> 26.8 | V19: =SUM(V13:V18) -> 29.44 | W19: 2.64 | X19: 0.09850746269
C20: Line Losses on Cost of Power | E20: 0.09904 | F20: 29.1 | G20: =E20*F20 -> 2.882064 | H20: 0.09904 | I20: 29.1 | J20: =H20*I20 -> 2.882064 | K20: 0 | L20: 0 | O20: Line Losses on Cost of Power | Q20: 0.09904 | R20: 29.1 | S20: =Q20*R20 -> 2.882064 | T20: 0.09904 | U20: 29.1 | V20: =T20*U20 -> 2.882064 | W20: 0 | X20: 0
C21: Total Deferral/Variance Account Rate Riders | E21: 0.0012 | F21: 750 | G21: =E21*F21 -> 0.9 | H21: 0.002 | I21: 750 | J21: =H21*I21 -> 1.5 | K21: 0.6 | L21: 0.6666666667 | O21: Total Deferral/Variance Account Rate Riders | Q21: 0.0012 | R21: 750 | S21: =Q21*R21 -> 0.9 | T21: =Residential!$S$17+Residential!$S$19 -> 0.0028 | U21: 750 | V21: =T21*U21 -> 2.1 | W21: 1.2 | X21: 1.333333333
C22: CBR Class B Rate Riders | E22: -0.0003 | F22: 750 | G22: -0.225 | H22: 0.0002 | I22: 750 | J22: 0.15 | K22: 0.375 | L22: -1.666666667 | O22: CBR Class B Rate Riders | Q22: -0.0003 | R22: 750 | S22: -0.225 | T22: =Residential!S18 -> 0.0004 | U22: 750 | V22: 0.3 | W22: 0.525 | X22: -2.333333333
C23: GA Rate Riders | E23: 0 | F23: 750 | G23: 0 | H23: 0 | I23: 750 | J23: 0 | K23: 0 | L23: 0 | O23: GA Rate Riders | Q23: 0 | R23: 750 | S23: 0 | T23: 0 | U23: 750 | V23: 0 | W23: 0 | X23: 0
C24: Low Voltage Service Charge | E24: 0.0051 | F24: 750 | G24: 3.825 | H24: 0.0051 | I24: 750 | J24: 3.825 | K24: 0 | L24: 0 | O24: Low Voltage Service Charge | Q24: 0.0051 | R24: 750 | S24: 3.825 | T24: =Residential!S11 -> 0.0051 | U24: 750 | V24: 3.825 | W24: 0 | X24: 0
C25: Smart Meter Entity Charge (if applicable) | E25: 0.42 | F25: 1 | G25: 0.42 | H25: 0.42 | I25: 1 | J25: 0.42 | K25: 0 | L25: 0 | O25: Smart Meter Entity Charge (if applicable) | Q25: 0.42 | R25: 1 | S25: 0.42 | T25: =Residential!S10 -> 0.42 | U25: 1 | V25: 0.42 | W25: 0 | X25: 0
C26: Additional Fixed Rate Riders | E26: 0 | F26: 1 | G26: 0 | H26: 0 | I26: 1 | J26: 0 | K26: 0 | L26: 0 | O26: Additional Fixed Rate Riders | Q26: 0 | R26: 1 | S26: 0 | T26: 0 | U26: 1 | V26: 0 | W26: 0 | X26: 0
C27: Additional Volumetric Rate Riders | E27: 0 | F27: 750 | G27: 0 | H27: 0 | I27: 750 | J27: 0 | K27: 0 | L27: 0 | O27: Additional Volumetric Rate Riders | Q27: 0 | R27: 750 | S27: 0 | T27: 0 | U27: 750 | V27: 0 | W27: 0 | X27: 0
B28: 1 | C28: Sub-Total B - Distribution (includes Sub-Total A) | G28: =SUM(G19:G27) -> 34.602064 | J28: =SUM(J19:J27) -> 36.897064 | K28: 2.295 | L28: 0.06632552324 | N28: 1 | O28: Sub-Total B - Distribution (includes Sub-Total A) | S28: =SUM(S19:S27) -> 34.602064 | V28: =SUM(V19:V27) -> 38.967064 | W28: 4.365 | X28: 0.1261485442
C29: RTSR - Network | E29: 0.0098 | F29: 779.1 | G29: =E29*F29 -> 7.63518 | H29: 0.0104 | I29: 779.1 | J29: =H29*I29 -> 8.10264 | K29: 0.46746 | L29: 0.0612244898 | O29: RTSR - Network | Q29: 0.0098 | R29: 779.1 | S29: =Q29*R29 -> 7.63518 | T29: =Residential!$S$21 -> 0.011 | U29: 779.1 | V29: =T29*U29 -> 8.5701 | W29: 0.93492 | X29: 0.1224489796
C30: RTSR - Connection and/or Line and Transformation Connection | E30: 0.008 | F30: 779.1 | G30: =E30*F30 -> 6.2328 | H30: 0.0083 | I30: 779.1 | J30: =H30*I30 -> 6.46653 | K30: 0.23373 | L30: 0.0375 | O30: RTSR - Connection and/or Line and Transformation Connection | Q30: 0.008 | R30: 779.1 | S30: =Q30*R30 -> 6.2328 | T30: =Residential!$S$22 -> 0.0086 | U30: 779.1 | V30: =T30*U30 -> 6.70026 | W30: 0.46746 | X30: 0.075
B31: 1 | C31: Sub-Total C - Delivery (including Sub-Total B) | G31: =SUM(G28:G30) -> 48.470044 | J31: =SUM(J28:J30) -> 51.466234 | K31: 2.99619 | L31: 0.06181529359 | N31: 1 | O31: Sub-Total C - Delivery (including Sub-Total B) | S31: =SUM(S28:S30) -> 48.470044 | V31: =SUM(V28:V30) -> 54.237424 | W31: 5.76738 | X31: 0.1189885448
C32: Wholesale Market Service Charge (WMSC) | E32: 0.0045 | F32: 779.1 | G32: =E32*F32 -> 3.50595 | H32: 0.0045 | I32: 779.1 | J32: =H32*I32 -> 3.50595 | K32: 0 | L32: 0 | O32: Wholesale Market Service Charge (WMSC) | Q32: 0.0045 | R32: 779.1 | S32: =Q32*R32 -> 3.50595 | T32: 0.0045 | U32: 779.1 | V32: =T32*U32 -> 3.50595 | W32: 0 | X32: 0
C33: Rural and Remote Rate Protection (RRRP) | E33: 0.0015 | F33: 779.1 | G33: =E33*F33 -> 1.16865 | H33: 0.0015 | I33: 779.1 | J33: =H33*I33 -> 1.16865 | K33: 0 | L33: 0 | O33: Rural and Remote Rate Protection (RRRP) | Q33: 0.0015 | R33: 779.1 | S33: =Q33*R33 -> 1.16865 | T33: 0.0015 | U33: 779.1 | V33: =T33*U33 -> 1.16865 | W33: 0 | X33: 0
C34: Standard Supply Service Charge | E34: 0.25 | F34: 1 | G34: 0.25 | H34: 0.25 | I34: 1 | J34: 0.25 | K34: 0 | L34: 0 | O34: Standard Supply Service Charge | Q34: 0.25 | R34: 1 | S34: 0.25 | T34: 0.25 | U34: 1 | V34: 0.25 | W34: 0 | X34: 0
C35: Ontario Electricity Support Program (OESP) | G35: 0 | J35: 0 | K35: 0 | L35: 0 | O35: Ontario Electricity Support Program (OESP) | S35: 0 | V35: 0 | W35: 0 | X35: 0
C36: TOU - Off Peak | E36: 0.076 | F36: 480 | G36: 36.48 | H36: 0.076 | I36: 480 | J36: 36.48 | K36: 0 | L36: 0 | O36: TOU - Off Peak | Q36: 0.076 | R36: 480 | S36: 36.48 | T36: 0.076 | U36: 480 | V36: 36.48 | W36: 0 | X36: 0
C37: TOU - Mid Peak | E37: 0.122 | F37: 135 | G37: 16.47 | H37: 0.122 | I37: 135 | J37: 16.47 | K37: 0 | L37: 0 | O37: TOU - Mid Peak | Q37: 0.122 | R37: 135 | S37: 16.47 | T37: 0.122 | U37: 135 | V37: 16.47 | W37: 0 | X37: 0
C38: TOU - On Peak | E38: 0.158 | F38: 135 | G38: 21.33 | H38: 0.158 | I38: 135 | J38: 21.33 | K38: 0 | L38: 0 | O38: TOU - On Peak | Q38: 0.158 | R38: 135 | S38: 21.33 | T38: 0.158 | U38: 135 | V38: 21.33 | W38: 0 | X38: 0
C39: Non-RPP Retailer Avg. Price | E39: 0.1076 | F39: 750 | G39: 80.7 | H39: 0.1076 | I39: 750 | J39: 80.7 | K39: 0 | L39: 0 | O39: Non-RPP Retailer Avg. Price | Q39: 0.1076 | R39: 750 | S39: 80.7 | T39: 0.1076 | U39: 750 | V39: 80.7 | W39: 0 | X39: 0
C40: Average IESO Wholesale Market Price | E40: 0.1076 | F40: 750 | G40: 80.7 | H40: 0.1076 | I40: 750 | J40: 80.7 | K40: 0 | L40: 0 | O40: Average IESO Wholesale Market Price | Q40: 0.1076 | R40: 750 | S40: 80.7 | T40: 0.1076 | U40: 750 | V40: 80.7 | W40: 0 | X40: 0
K41: 0 | L41: 0 | W41: 0 | X41: 0
C42: Total Bill on TOU (before Taxes) | G42: =SUM(G31:G38) -> 127.674644 | J42: =SUM(J31:J38) -> 130.670834 | K42: 2.99619 | L42: 0.0234673848 | O42: Total Bill on TOU (before Taxes) | S42: =SUM(S31:S38) -> 127.674644 | V42: =SUM(V31:V38) -> 133.442024 | W42: 5.76738 | X42: 0.04517247763
C43: HST | E43: 0.13 | G43: =G42*E43 -> 16.59770372 | H43: 0.13 | J43: =J42*H43 -> 16.98720842 | K43: 0.3895047 | L43: 0.0234673848 | O43: HST | Q43: 0.13 | S43: =S42*Q43 -> 16.59770372 | T43: 0.13 | V43: =V42*T43 -> 17.34746312 | W43: 0.7497594 | X43: 0.04517247763
C44: Ontario Electricity Rebate | E44: 0.131 | G44: =-G42*E44 -> -16.72537836 | H44: 0.131 | J44: =-J42*H44 -> -17.11787925 | K44: -0.39250089 | L44: 0.0234673848 | O44: Ontario Electricity Rebate | Q44: 0.131 | S44: =-S42*Q44 -> -16.72537836 | T44: 0.131 | V44: =-V42*T44 -> -17.48090514 | W44: -0.75552678 | X44: 0.04517247763
B45: 1 | C45: Total Bill on TOU | G45: =SUM(G42:G44) -> 127.5469694 | J45: =SUM(J42:J44) -> 130.5401632 | K45: 2.99319381 | L45: 0.0234673848 | N45: 1 | O45: Total Bill on TOU | S45: =SUM(S42:S44) -> 127.5469694 | V45: =SUM(V42:V44) -> 133.308582 | W45: 5.76161262 | X45: 0.04517247763

Sheet GS<50kW Rate Impact
C1: Final before retroactive | O1: Final after retroactive
C3: Customer Class: | D3: GENERAL SERVICE LESS THAN 50 KW SERVICE CLASSIFICATION | O3: Customer Class: | P3: GENERAL SERVICE LESS THAN 50 KW SERVICE CLASSIFICATION
C4: RPP / Non-RPP: | D4: RPP | O4: RPP / Non-RPP: | P4: RPP
C5: Consumption | D5: 2500 | E5: kWh | O5: Consumption | P5: 2500 | Q5: kWh
C6: Demand | D6: 0 | E6: kW | O6: Demand | P6: 0 | Q6: kW
C7: Current Loss Factor | D7: 1.0388 | O7: Current Loss Factor | P7: 1.0388
C8: Proposed/Approved Loss Factor | D8: 1.0388 | O8: Proposed/Approved Loss Factor | P8: 1.0388
E10: Current OEB-Approved | H10: Proposed | K10: Impact | Q10: Current OEB-Approved | T10: Proposed | W10: Impact
E11: Rate | F11: Volume | G11: Charge | H11: Rate | I11: Volume | J11: Charge | K11: $ Change | L11: % Change | Q11: Rate | R11: Volume | S11: Charge | T11: Rate | U11: Volume | V11: Charge | W11: $ Change | X11: % Change
E12: ($) | G12: ($) | H12: ($) | J12: ($) | Q12: ($) | S12: ($) | T12: ($) | V12: ($)
C13: Monthly Service Charge | E13: 27.71 | F13: 1 | G13: =E13*F13 -> 27.71 | H13: 28.71 | I13: 1 | J13: =H13*I13 -> 28.71 | K13: =J13-G13 -> 1 | L13: =IF(G13<>0,K13/G13,0) -> 0.03608805485 | O13: Monthly Service Charge | Q13: 27.71 | R13: 1 | S13: =Q13*R13 -> 27.71 | T13: ='GS<50kW'!S6 -> 29.71 | U13: 1 | V13: =T13*U13 -> 29.71 | W13: =V13-S13 -> 2 | X13: =IF(S13<>0,W13/S13,0) -> 0.07217610971
C14: Distribution Volumetric Rate | E14: 0.0102 | F14: 2500 | G14: =E14*F14 -> 25.5 | H14: 0.0106 | I14: 2500 | J14: =H14*I14 -> 26.5 | K14: =J14-G14 -> 1 | L14: 0.03921568627 | O14: Distribution Volumetric Rate | Q14: 0.0102 | R14: 2500 | S14: =Q14*R14 -> 25.5 | T14: ='GS<50kW'!S12 -> 0.011 | U14: 2500 | V14: =T14*U14 -> 27.5 | W14: =V14-S14 -> 2 | X14: 0.07843137255
C15: RRRP Credit | F15: 2500 | G15: 0 | I15: 2500 | J15: 0 | K15: 0 | L15: 0 | O15: RRRP Credit | R15: 2500 | S15: 0 | U15: 2500 | V15: 0 | W15: 0 | X15: 0
C16: DRP Adjustment | F16: 2500 | G16: 0 | I16: 2500 | J16: 0 | K16: 0 | L16: 0 | O16: DRP Adjustment | R16: 2500 | S16: 0 | U16: 2500 | V16: 0 | W16: 0 | X16: 0
C17: Fixed Rate Riders | E17: 0 | F17: 1 | G17: 0 | H17: 0.37 | I17: 1 | J17: 0.37 | K17: 0.37 | L17: 0 | O17: Fixed Rate Riders | Q17: 0 | R17: 1 | S17: 0 | T17: ='GS<50kW'!S8 -> 0.74 | U17: 1 | V17: 0.74 | W17: 0.74 | X17: 0
C18: Volumetric Rate Riders | E18: 0 | F18: 2500 | G18: 0 | H18: 0.0001 | I18: 2500 | J18: 0.25 | K18: 0.25 | L18: 0 | O18: Volumetric Rate Riders | Q18: 0 | R18: 2500 | S18: 0 | T18: ='GS<50kW'!S25 -> 0.0002 | U18: 2500 | V18: 0.5 | W18: 0.5 | X18: 0
C19: Sub-Total A (excluding pass through) | G19: =SUM(G13:G18) -> 53.21 | J19: =SUM(J13:J18) -> 55.83 | K19: 2.62 | L19: 0.04923886488 | O19: Sub-Total A (excluding pass through) | S19: =SUM(S13:S18) -> 53.21 | V19: =SUM(V13:V18) -> 58.45 | W19: 5.24 | X19: 0.09847772975
C20: Line Losses on Cost of Power | E20: 0.09904 | F20: 97 | G20: =E20*F20 -> 9.60688 | H20: 0.09904 | I20: 97 | J20: =H20*I20 -> 9.60688 | K20: 0 | L20: 0 | O20: Line Losses on Cost of Power | Q20: 0.09904 | R20: 97 | S20: =Q20*R20 -> 9.60688 | T20: 0.09904 | U20: 97 | V20: =T20*U20 -> 9.60688 | W20: 0 | X20: 0
C21: Total Deferral/Variance Account Rate Riders | E21: 0.0012 | F21: 2500 | G21: =E21*F21 -> 3 | H21: 0.0022 | I21: 2500 | J21: =H21*I21 -> 5.5 | K21: 2.5 | L21: 0.8333333333 | O21: Total Deferral/Variance Account Rate Riders | Q21: 0.0012 | R21: 2500 | S21: =Q21*R21 -> 3 | T21: ='GS<50kW'!S20+'GS<50kW'!S22 -> 0.0032 | U21: 2500 | V21: =T21*U21 -> 8 | W21: 5 | X21: 1.666666667
C22: CBR Class B Rate Riders | E22: -0.0003 | F22: 2500 | G22: -0.75 | H22: 0.0002 | I22: 2500 | J22: 0.5 | K22: 1.25 | L22: -1.666666667 | O22: CBR Class B Rate Riders | Q22: -0.0003 | R22: 2500 | S22: -0.75 | T22: ='GS<50kW'!S24 -> 0.0004 | U22: 2500 | V22: 1 | W22: 1.75 | X22: -2.333333333
C23: GA Rate Riders | E23: 0 | F23: 2500 | G23: 0 | H23: 0 | I23: 2500 | J23: 0 | K23: 0 | L23: 0 | O23: GA Rate Riders | Q23: 0 | R23: 2500 | S23: 0 | T23: 0 | U23: 2500 | V23: 0 | W23: 0 | X23: 0
C24: Low Voltage Service Charge | E24: 0.0046 | F24: 2500 | G24: 11.5 | H24: 0.0046 | I24: 2500 | J24: 11.5 | K24: 0 | L24: 0 | O24: Low Voltage Service Charge | Q24: 0.0046 | R24: 2500 | S24: 11.5 | T24: ='GS<50kW'!S14 -> 0.0046 | U24: 2500 | V24: 11.5 | W24: 0 | X24: 0
C25: Smart Meter Entity Charge (if applicable) | E25: 0.42 | F25: 1 | G25: 0.42 | H25: 0.42 | I25: 1 | J25: 0.42 | K25: 0 | L25: 0 | O25: Smart Meter Entity Charge (if applicable) | Q25: 0.42 | R25: 1 | S25: 0.42 | T25: ='GS<50kW'!S10 -> 0.42 | U25: 1 | V25: 0.42 | W25: 0 | X25: 0
C26: Additional Fixed Rate Riders | E26: 0 | F26: 1 | G26: 0 | H26: 0 | I26: 1 | J26: 0 | K26: 0 | L26: 0 | O26: Additional Fixed Rate Riders | Q26: 0 | R26: 1 | S26: 0 | T26: 0 | U26: 1 | V26: 0 | W26: 0 | X26: 0
C27: Additional Volumetric Rate Riders | E27: 0 | F27: 2500 | G27: 0 | H27: 0 | I27: 2500 | J27: 0 | K27: 0 | L27: 0 | O27: Additional Volumetric Rate Riders | Q27: 0 | R27: 2500 | S27: 0 | T27: 0 | U27: 2500 | V27: 0 | W27: 0 | X27: 0
C28: Sub-Total B - Distribution (includes Sub-Total A) | G28: =SUM(G19:G27) -> 76.98688 | J28: =SUM(J19:J27) -> 83.35688 | K28: 6.37 | L28: 0.082741371 | O28: Sub-Total B - Distribution (includes Sub-Total A) | S28: =SUM(S19:S27) -> 76.98688 | V28: =SUM(V19:V27) -> 88.97688 | W28: 11.99 | X28: 0.1557408223
C29: RTSR - Network | E29: 0.009 | F29: 2597 | G29: =E29*F29 -> 23.373 | H29: 0.0096 | I29: 2597 | J29: =H29*I29 -> 24.9312 | K29: 1.5582 | L29: 0.06666666667 | O29: RTSR - Network | Q29: 0.009 | R29: 2597 | S29: =Q29*R29 -> 23.373 | T29: ='GS<50kW'!S27 -> 0.0102 | U29: 2597 | V29: =T29*U29 -> 26.4894 | W29: 3.1164 | X29: 0.1333333333
C30: RTSR - Connection and/or Line and Transformation Connection | E30: 0.0072 | F30: 2597 | G30: =E30*F30 -> 18.6984 | H30: 0.0075 | I30: 2597 | J30: =H30*I30 -> 19.4775 | K30: 0.7791 | L30: 0.04166666667 | O30: RTSR - Connection and/or Line and Transformation Connection | Q30: 0.0072 | R30: 2597 | S30: =Q30*R30 -> 18.6984 | T30: ='GS<50kW'!S28 -> 0.0078 | U30: 2597 | V30: =T30*U30 -> 20.2566 | W30: 1.5582 | X30: 0.08333333333
C31: Sub-Total C - Delivery (including Sub-Total B) | G31: =SUM(G28:G30) -> 119.05828 | J31: =SUM(J28:J30) -> 127.76558 | K31: 8.7073 | L31: 0.07313477064 | O31: Sub-Total C - Delivery (including Sub-Total B) | S31: =SUM(S28:S30) -> 119.05828 | V31: =SUM(V28:V30) -> 135.72288 | W31: 16.6646 | X31: 0.1399701054
C32: Wholesale Market Service Charge (WMSC) | E32: 0.0045 | F32: 2597 | G32: =E32*F32 -> 11.6865 | H32: 0.0045 | I32: 2597 | J32: =H32*I32 -> 11.6865 | K32: 0 | L32: 0 | O32: Wholesale Market Service Charge (WMSC) | Q32: 0.0045 | R32: 2597 | S32: =Q32*R32 -> 11.6865 | T32: 0.0045 | U32: 2597 | V32: =T32*U32 -> 11.6865 | W32: 0 | X32: 0
C33: Rural and Remote Rate Protection (RRRP) | E33: 0.0015 | F33: 2597 | G33: =E33*F33 -> 3.8955 | H33: 0.0015 | I33: 2597 | J33: =H33*I33 -> 3.8955 | K33: 0 | L33: 0 | O33: Rural and Remote Rate Protection (RRRP) | Q33: 0.0015 | R33: 2597 | S33: =Q33*R33 -> 3.8955 | T33: 0.0015 | U33: 2597 | V33: =T33*U33 -> 3.8955 | W33: 0 | X33: 0
C34: Standard Supply Service Charge | E34: 0.25 | F34: 1 | G34: 0.25 | H34: 0.25 | I34: 1 | J34: 0.25 | K34: 0 | L34: 0 | O34: Standard Supply Service Charge | Q34: 0.25 | R34: 1 | S34: 0.25 | T34: 0.25 | U34: 1 | V34: 0.25 | W34: 0 | X34: 0
C35: Ontario Electricity Support Program (OESP) | G35: 0 | J35: 0 | K35: 0 | L35: 0 | O35: Ontario Electricity Support Program (OESP) | S35: 0 | V35: 0 | W35: 0 | X35: 0
C36: TOU - Off Peak | E36: 0.076 | F36: 1600 | G36: 121.6 | H36: 0.076 | I36: 1600 | J36: 121.6 | K36: 0 | L36: 0 | O36: TOU - Off Peak | Q36: 0.076 | R36: 1600 | S36: 121.6 | T36: 0.076 | U36: 1600 | V36: 121.6 | W36: 0 | X36: 0
C37: TOU - Mid Peak | E37: 0.122 | F37: 450 | G37: 54.9 | H37: 0.122 | I37: 450 | J37: 54.9 | K37: 0 | L37: 0 | O37: TOU - Mid Peak | Q37: 0.122 | R37: 450 | S37: 54.9 | T37: 0.122 | U37: 450 | V37: 54.9 | W37: 0 | X37: 0
C38: TOU - On Peak | E38: 0.158 | F38: 450 | G38: 71.1 | H38: 0.158 | I38: 450 | J38: 71.1 | K38: 0 | L38: 0 | O38: TOU - On Peak | Q38: 0.158 | R38: 450 | S38: 71.1 | T38: 0.158 | U38: 450 | V38: 71.1 | W38: 0 | X38: 0
C39: Non-RPP Retailer Avg. Price | E39: 0.1076 | F39: 2500 | G39: 269 | H39: 0.1076 | I39: 2500 | J39: 269 | K39: 0 | L39: 0 | O39: Non-RPP Retailer Avg. Price | Q39: 0.1076 | R39: 2500 | S39: 269 | T39: 0.1076 | U39: 2500 | V39: 269 | W39: 0 | X39: 0
C40: Average IESO Wholesale Market Price | E40: 0.1076 | F40: 2500 | G40: 269 | H40: 0.1076 | I40: 2500 | J40: 269 | K40: 0 | L40: 0 | O40: Average IESO Wholesale Market Price | Q40: 0.1076 | R40: 2500 | S40: 269 | T40: 0.1076 | U40: 2500 | V40: 269 | W40: 0 | X40: 0
K41: 0 | L41: 0 | W41: 0 | X41: 0
C42: Total Bill on TOU (before Taxes) | G42: =SUM(G31:G38) -> 382.49028 | J42: =SUM(J31:J38) -> 391.19758 | K42: 8.7073 | L42: 0.0227647615 | O42: Total Bill on TOU (before Taxes) | S42: =SUM(S31:S38) -> 382.49028 | V42: =SUM(V31:V38) -> 399.15488 | W42: 16.6646 | X42: 0.04356868886
C43: HST | E43: 0.13 | G43: =G42*E43 -> 49.7237364 | H43: 0.13 | J43: =J42*H43 -> 50.8556854 | K43: 1.131949 | L43: 0.0227647615 | O43: HST | Q43: 0.13 | S43: =S42*Q43 -> 49.7237364 | T43: 0.13 | V43: =V42*T43 -> 51.8901344 | W43: 2.166398 | X43: 0.04356868886
C44: Ontario Electricity Rebate | E44: 0.131 | G44: =-G42*E44 -> -50.10622668 | H44: 0.131 | J44: =-J42*H44 -> -51.24688298 | K44: -1.1406563 | L44: 0.0227647615 | O44: Ontario Electricity Rebate | Q44: 0.131 | S44: =-S42*Q44 -> -50.10622668 | T44: 0.131 | V44: =-V42*T44 -> -52.28928928 | W44: -2.1830626 | X44: 0.04356868886
C45: Total Bill on TOU | G45: =SUM(G42:G44) -> 382.1077897 | J45: =SUM(J42:J44) -> 390.8063824 | K45: 8.6985927 | L45: 0.0227647615 | O45: Total Bill on TOU | S45: =SUM(S42:S44) -> 382.1077897 | V45: =SUM(V42:V44) -> 398.7557251 | W45: 16.6479354 | X45: 0.04356868886

Sheet GS>50kW Rate Impact
C1: Final before retroactive | O1: Final after retroactive
C3: Customer Class: | D3: GENERAL SERVICE 50 TO 2,999 KW SERVICE CLASSIFICATION | O3: Customer Class: | P3: GENERAL SERVICE 50 TO 2,999 KW SERVICE CLASSIFICATION
C4: RPP / Non-RPP: | D4: Non-RPP (Other) | O4: RPP / Non-RPP: | P4: Non-RPP (Other)
C5: Consumption | D5: 72000 | E5: kWh | O5: Consumption | P5: 72000 | Q5: kWh
C6: Demand | D6: 200 | E6: kW | O6: Demand | P6: 200 | Q6: kW
C7: Current Loss Factor | D7: 1.0388 | O7: Current Loss Factor | P7: 1.0388
C8: Proposed/Approved Loss Factor | D8: 1.0388 | O8: Proposed/Approved Loss Factor | P8: 1.0388
E10: Current OEB-Approved | H10: Proposed | K10: Impact | Q10: Current OEB-Approved | T10: Proposed | W10: Impact
E11: Rate | F11: Volume | G11: Charge | H11: Rate | I11: Volume | J11: Charge | K11: $ Change | L11: % Change | Q11: Rate | R11: Volume | S11: Charge | T11: Rate | U11: Volume | V11: Charge | W11: $ Change | X11: % Change
E12: ($) | G12: ($) | H12: ($) | J12: ($) | Q12: ($) | S12: ($) | T12: ($) | V12: ($)
C13: Monthly Service Charge | E13: 100.83 | F13: 1 | G13: =E13*F13 -> 100.83 | H13: 104.46 | I13: 1 | J13: =H13*I13 -> 104.46 | K13: =J13-G13 -> 3.63 | L13: =IF(G13<>0,K13/G13,0) -> 0.03600119012 | O13: Monthly Service Charge | Q13: 100.83 | R13: 1 | S13: =Q13*R13 -> 100.83 | T13: ='GS>50 to 2999 kW'!S6 -> 108.09 | U13: 1 | V13: =T13*U13 -> 108.09 | W13: =V13-S13 -> 7.26 | X13: =IF(S13<>0,W13/S13,0) -> 0.07200238024
C14: Distribution Volumetric Rate | E14: 4.0251 | F14: 200 | G14: =E14*F14 -> 805.02 | H14: 4.17 | I14: 200 | J14: =H14*I14 -> 834 | K14: =J14-G14 -> 28.98 | L14: 0.03599910561 | O14: Distribution Volumetric Rate | Q14: 4.0251 | R14: 200 | S14: =Q14*R14 -> 805.02 | T14: ='GS>50 to 2999 kW'!S8 -> 4.3149 | U14: 200 | V14: =T14*U14 -> 862.98 | W14: =V14-S14 -> 57.96 | X14: 0.07199821122
C15: RRRP Credit | F15: 200 | G15: 0 | I15: 200 | J15: 0 | K15: 0 | L15: 0 | O15: RRRP Credit | R15: 200 | S15: 0 | U15: 200 | V15: 0 | W15: 0 | X15: 0
C16: DRP Adjustment | F16: 200 | G16: 0 | I16: 200 | J16: 0 | K16: 0 | L16: 0 | O16: DRP Adjustment | R16: 200 | S16: 0 | U16: 200 | V16: 0 | W16: 0 | X16: 0
C17: Fixed Rate Riders | E17: 0 | F17: 1 | G17: 0 | H17: 1.33 | I17: 1 | J17: 1.33 | K17: 1.33 | L17: 0 | O17: Fixed Rate Riders | Q17: 0 | R17: 1 | S17: 0 | T17: ='GS>50 to 2999 kW'!S7 -> 2.66 | U17: 1 | V17: 2.66 | W17: 2.66 | X17: 0
C18: Volumetric Rate Riders | E18: 0 | F18: 200 | G18: 0 | H18: 0.0533 | I18: 200 | J18: 10.66 | K18: 10.66 | L18: 0 | O18: Volumetric Rate Riders | Q18: 0 | R18: 200 | S18: 0 | T18: 0.0533 | U18: 200 | V18: 10.66 | W18: 10.66 | X18: 0
C19: Sub-Total A (excluding pass through) | G19: =SUM(G13:G18) -> 905.85 | J19: =SUM(J13:J18) -> 950.45 | K19: 44.6 | L19: 0.04923552465 | O19: Sub-Total A (excluding pass through) | S19: =SUM(S13:S18) -> 905.85 | V19: =SUM(V13:V18) -> 984.39 | W19: 78.54 | X19: 0.08670309654
C20: Line Losses on Cost of Power | E20: 0 | F20: 0 | G20: =E20*F20 -> 0 | H20: 0 | I20: 0 | J20: =H20*I20 -> 0 | K20: 0 | L20: 0 | O20: Line Losses on Cost of Power | Q20: 0 | R20: 0 | S20: =Q20*R20 -> 0 | T20: 0 | U20: 0 | V20: =T20*U20 -> 0 | W20: 0 | X20: 0
C21: Total Deferral/Variance Account Rate Riders | E21: ='GS>50 to 2999 kW'!E18 -> 0.4584 | F21: 200 | G21: =E21*F21 -> 91.68 | H21: 0.8551 | I21: 200 | J21: =H21*I21 -> 171.02 | K21: 79.34 | L21: 0.8654013962 | O21: Total Deferral/Variance Account Rate Riders | Q21: ='GS>50 to 2999 kW'!E18 -> 0.4584 | R21: 200 | S21: =Q21*R21 -> 91.68 | T21: =SUM('GS>50 to 2999 kW'!S16,'GS>50 to 2999 kW'!S19) -> 0.9 | U21: 200 | V21: =T21*U21 -> 180 | W21: 88.32 | X21: 0.9633507853
C22: CBR Class B Rate Riders | E22: -0.0935 | F22: 200 | G22: -18.7 | H22: 0.0615 | I22: 200 | J22: 12.3 | K22: 31 | L22: -1.657754011 | O22: CBR Class B Rate Riders | Q22: -0.0935 | R22: 200 | S22: -18.7 | T22: ='GS>50 to 2999 kW'!S17 -> 0.123 | U22: 200 | V22: 24.6 | W22: 43.3 | X22: -2.315508021
C23: GA Rate Riders | E23: 0 | F23: 72000 | G23: 0 | H23: 0.0015 | I23: 72000 | J23: 108 | K23: 108 | L23: 0 | O23: GA Rate Riders | Q23: 0 | R23: 72000 | S23: 0 | T23: ='GS>50 to 2999 kW'!S15 -> 0.003 | U23: 72000 | V23: 216 | W23: 216 | X23: 0
C24: Low Voltage Service Charge | E24: 1.842 | F24: 200 | G24: 368.4 | H24: 1.842 | I24: 200 | J24: 368.4 | K24: 0 | L24: 0 | O24: Low Voltage Service Charge | Q24: 1.842 | R24: 200 | S24: 368.4 | T24: ='GS>50 to 2999 kW'!S10 -> 1.842 | U24: 200 | V24: 368.4 | W24: 0 | X24: 0
C25: Smart Meter Entity Charge (if applicable) | E25: 0 | F25: 1 | G25: 0 | H25: 0 | I25: 1 | J25: 0 | K25: 0 | L25: 0 | O25: Smart Meter Entity Charge (if applicable) | Q25: 0 | R25: 1 | S25: 0 | T25: 0 | U25: 1 | V25: 0 | W25: 0 | X25: 0
C26: Additional Fixed Rate Riders | E26: 0 | F26: 1 | G26: 0 | H26: 0 | I26: 1 | J26: 0 | K26: 0 | L26: 0 | O26: Additional Fixed Rate Riders | Q26: 0 | R26: 1 | S26: 0 | T26: 0 | U26: 1 | V26: 0 | W26: 0 | X26: 0
C27: Additional Volumetric Rate Riders | E27: 0 | F27: 200 | G27: 0 | H27: 0 | I27: 200 | J27: 0 | K27: 0 | L27: 0 | O27: Additional Volumetric Rate Riders | Q27: 0 | R27: 200 | S27: 0 | T27: 0 | U27: 200 | V27: 0 | W27: 0 | X27: 0
C28: Sub-Total B - Distribution (includes Sub-Total A) | G28: =SUM(G19:G27) -> 1347.23 | J28: =SUM(J19:J27) -> 1610.17 | K28: 262.94 | L28: 0.195170832 | O28: Sub-Total B - Distribution (includes Sub-Total A) | S28: =SUM(S19:S27) -> 1347.23 | V28: =SUM(V19:V27) -> 1773.39 | W28: 426.16 | X28: 0.3163231223
C29: RTSR - Network | E29: 3.6153 | F29: 200 | G29: =E29*F29 -> 723.06 | H29: 3.8496 | I29: 200 | J29: =H29*I29 -> 769.92 | K29: 46.86 | L29: 0.06480789976 | O29: RTSR - Network | Q29: 3.6153 | R29: 200 | S29: =Q29*R29 -> 723.06 | T29: ='GS>50 to 2999 kW'!S21 -> 4.0839 | U29: 200 | V29: =T29*U29 -> 816.78 | W29: 93.72 | X29: 0.1296157995
C30: RTSR - Connection and/or Line and Transformation Connection | E30: 2.8806 | F30: 200 | G30: =E30*F30 -> 576.12 | H30: 2.9809 | I30: 200 | J30: =H30*I30 -> 596.18 | K30: 20.06 | L30: 0.0348191349 | O30: RTSR - Connection and/or Line and Transformation Connection | Q30: 2.8806 | R30: 200 | S30: =Q30*R30 -> 576.12 | T30: ='GS>50 to 2999 kW'!S22 -> 3.0812 | U30: 200 | V30: =T30*U30 -> 616.24 | W30: 40.12 | X30: 0.0696382698
C31: Sub-Total C - Delivery (including Sub-Total B) | G31: =SUM(G28:G30) -> 2646.41 | J31: =SUM(J28:J30) -> 2976.27 | K31: 329.86 | L31: 0.1246443295 | O31: Sub-Total C - Delivery (including Sub-Total B) | S31: =SUM(S28:S30) -> 2646.41 | V31: =SUM(V28:V30) -> 3206.41 | W31: 560 | X31: 0.2116074229
C32: Wholesale Market Service Charge (WMSC) | E32: 0.0045 | F32: 74793.6 | G32: =E32*F32 -> 336.5712 | H32: 0.0045 | I32: 74793.6 | J32: =H32*I32 -> 336.5712 | K32: 0 | L32: 0 | O32: Wholesale Market Service Charge (WMSC) | Q32: 0.0045 | R32: 74793.6 | S32: =Q32*R32 -> 336.5712 | T32: 0.0045 | U32: 74793.6 | V32: =T32*U32 -> 336.5712 | W32: 0 | X32: 0
C33: Rural and Remote Rate Protection (RRRP) | E33: 0.0015 | F33: 74793.6 | G33: =E33*F33 -> 112.1904 | H33: 0.0015 | I33: 74793.6 | J33: =H33*I33 -> 112.1904 | K33: 0 | L33: 0 | O33: Rural and Remote Rate Protection (RRRP) | Q33: 0.0015 | R33: 74793.6 | S33: =Q33*R33 -> 112.1904 | T33: 0.0015 | U33: 74793.6 | V33: =T33*U33 -> 112.1904 | W33: 0 | X33: 0
C34: Standard Supply Service Charge | E34: 0.25 | F34: 1 | G34: 0.25 | H34: 0.25 | I34: 1 | J34: 0.25 | K34: 0 | L34: 0 | O34: Standard Supply Service Charge | Q34: 0.25 | R34: 1 | S34: 0.25 | T34: 0.25 | U34: 1 | V34: 0.25 | W34: 0 | X34: 0
C35: Ontario Electricity Support Program (OESP) | G35: 0 | J35: 0 | K35: 0 | L35: 0 | O35: Ontario Electricity Support Program (OESP) | S35: 0 | V35: 0 | W35: 0 | X35: 0
C36: TOU - Off Peak | E36: 0.076 | F36: 47867.904 | G36: 3637.960704 | H36: 0.076 | I36: 47867.904 | J36: 3637.960704 | K36: 0 | L36: 0 | O36: TOU - Off Peak | Q36: 0.076 | R36: 47867.904 | S36: 3637.960704 | T36: 0.076 | U36: 47867.904 | V36: 3637.960704 | W36: 0 | X36: 0
C37: TOU - Mid Peak | E37: 0.122 | F37: 13462.848 | G37: 1642.467456 | H37: 0.122 | I37: 13462.848 | J37: 1642.467456 | K37: 0 | L37: 0 | O37: TOU - Mid Peak | Q37: 0.122 | R37: 13462.848 | S37: 1642.467456 | T37: 0.122 | U37: 13462.848 | V37: 1642.467456 | W37: 0 | X37: 0
C38: TOU - On Peak | E38: 0.158 | F38: 13462.848 | G38: 2127.129984 | H38: 0.158 | I38: 13462.848 | J38: 2127.129984 | K38: 0 | L38: 0 | O38: TOU - On Peak | Q38: 0.158 | R38: 13462.848 | S38: 2127.129984 | T38: 0.158 | U38: 13462.848 | V38: 2127.129984 | W38: 0 | X38: 0
C39: Non-RPP Retailer Avg. Price | E39: 0.1076 | F39: 74793.6 | G39: 8047.79136 | H39: 0.1076 | I39: 74793.6 | J39: 8047.79136 | K39: 0 | L39: 0 | O39: Non-RPP Retailer Avg. Price | Q39: 0.1076 | R39: 74793.6 | S39: 8047.79136 | T39: 0.1076 | U39: 74793.6 | V39: 8047.79136 | W39: 0 | X39: 0
C40: Average IESO Wholesale Market Price | E40: 0.1076 | F40: 74793.6 | G40: 8047.79136 | H40: 0.1076 | I40: 74793.6 | J40: 8047.79136 | K40: 0 | L40: 0 | O40: Average IESO Wholesale Market Price | Q40: 0.1076 | R40: 74793.6 | S40: 8047.79136 | T40: 0.1076 | U40: 74793.6 | V40: 8047.79136 | W40: 0 | X40: 0
K41: 0 | L41: 0 | W41: 0 | X41: 0
C42: Total Bill on TOU (before Taxes) | G42: =SUM(G31:G38) -> 10502.97974 | J42: =SUM(J31:J38) -> 10832.83974 | K42: 329.86 | L42: 0.03140632545 | O42: Total Bill on TOU (before Taxes) | S42: =SUM(S31:S38) -> 10502.97974 | V42: =SUM(V31:V38) -> 11062.97974 | W42: 560 | X42: 0.05331820242
C43: HST | E43: 0.13 | G43: =G42*E43 -> 1365.387367 | H43: 0.13 | J43: =J42*H43 -> 1408.269167 | K43: 42.8818 | L43: 0.03140632545 | O43: HST | Q43: 0.13 | S43: =S42*Q43 -> 1365.387367 | T43: 0.13 | V43: =V42*T43 -> 1438.187367 | W43: 72.8 | X43: 0.05331820242
C44: Ontario Electricity Rebate | E44: 0.131 | G44: =-G42*E44 -> -1375.890346 | H44: 0.131 | J44: =-J42*H44 -> -1419.102006 | K44: -43.21166 | L44: 0.03140632545 | O44: Ontario Electricity Rebate | Q44: 0.131 | S44: =-S42*Q44 -> -1375.890346 | T44: 0.131 | V44: =-V42*T44 -> -1449.250346 | W44: -73.36 | X44: 0.05331820242
C45: Total Bill on TOU | G45: =SUM(G42:G44) -> 10492.47676 | J45: =SUM(J42:J44) -> 10822.0069 | K45: 329.53014 | L45: 0.03140632545 | O45: Total Bill on TOU | S45: =SUM(S42:S44) -> 10492.47676 | V45: =SUM(V42:V44) -> 11051.91676 | W45: 559.44 | X45: 0.05331820242
C47: Total Bill on Non-RPP Avg. Price | G47: =SUM(G31:G35,G39) -> 11143.21296 | J47: =SUM(J31:J35,J39) -> 11473.07296 | K47: =SUM(K31:K35,K39) -> 329.86 | L47: 0.02960187526 | O47: Total Bill on Non-RPP Avg. Price | S47: =SUM(S31:S35,S39) -> 11143.21296 | V47: =SUM(V31:V35,V39) -> 11703.21296 | W47: =SUM(W31:W35,W39) -> 560 | X47: =IF(S47<>0,W47/S47,0) -> 0.0502548055
C48: HST | E48: 0.13 | G48: =G47*E48 -> 1448.617685 | H48: 0.13 | J48: =J47*H48 -> 1491.499485 | K48: =J48-G48 -> 42.8818 | L48: 0.02960187526 | O48: HST | Q48: 0.13 | S48: =S47*Q48 -> 1448.617685 | T48: 0.13 | V48: =V47*T48 -> 1521.417685 | W48: =V48-S48 -> 72.8 | X48: 0.0502548055
C49: Ontario Electricity Rebate | E49: 0 | G49: =-G47*E49 -> 0 | H49: 0 | J49: =-J47*H49 -> 0 | K49: 0 | L49: 0 | O49: Ontario Electricity Rebate | Q49: 0 | S49: =-S47*Q49 -> 0 | T49: 0 | V49: =-V47*T49 -> 0 | W49: 0 | X49: 0
C50: Total Bill on Non-RPP Avg. Price | G50: =SUM(G47:G49) -> 12591.83064 | J50: =SUM(J47:J49) -> 12964.57244 | K50: -8572.992696 | L50: -0.6808376747 | O50: Total Bill on Non-RPP Avg. Price | S50: =SUM(S47:S49) -> 12591.83064 | V50: =SUM(V47:V49) -> 13224.63064 | W50: -8572.992696 | X50: -0.6808376747
C52: Total Bill on Average IESO Wholesale Market Price | G52: =SUM(G31:G35,G40) -> 11143.21296 | J52: =SUM(J31:J35,J40) -> 11473.07296 | K52: =SUM(K31:K35,K40) -> 329.86 | L52: 0.02960187526 | O52: Total Bill on Average IESO Wholesale Market Price | S52: =SUM(S31:S35,S40) -> 11143.21296 | V52: =SUM(V31:V35,V40) -> 11703.21296 | W52: =SUM(W31:W35,W40) -> 560 | X52: =IF(S52<>0,W52/S52,0) -> 0.0502548055
C53: HST | E53: 0.13 | G53: =G52*E53 -> 1448.617685 | H53: 0.13 | J53: =J52*H53 -> 1491.499485 | K53: =J53-G53 -> 42.8818 | L53: 0.02960187526 | O53: HST | Q53: 0.13 | S53: =S52*Q53 -> 1448.617685 | T53: 0.13 | V53: =V52*T53 -> 1521.417685 | W53: =V53-S53 -> 72.8 | X53: 0.0502548055
C54: Ontario Electricity Rebate | E54: 0 | G54: =-G52*E54 -> 0 | H54: 0 | J54: =-J52*H54 -> 0 | K54: 0 | L54: 0 | O54: Ontario Electricity Rebate | Q54: 0 | S54: =-S52*Q54 -> 0 | T54: 0 | V54: =-V52*T54 -> 0 | W54: 0 | X54: 0
C55: Total Bill on Average IESO Wholesale Market Price | G55: =SUM(G52:G54) -> 12591.83064 | J55: =SUM(J52:J54) -> 12964.57244 | K55: =SUM(K52:K54) -> 372.7418 | L55: 0.02960187526 | O55: Total Bill on Average IESO Wholesale Market Price | S55: =SUM(S52:S54) -> 12591.83064 | V55: =SUM(V52:V54) -> 13224.63064 | W55: =SUM(W52:W54) -> 632.8 | X55: 0.0502548055

Sheet GS>3000kW Rate Impact
C1: Final before retroactive | O1: Final after retroactive
C3: Customer Class: | D3: GENERAL SERVICE 3,000 TO 4,999 KW SERVICE CLASSIFICATION | O3: Customer Class: | P3: GENERAL SERVICE 3,000 TO 4,999 KW SERVICE CLASSIFICATION
C4: RPP / Non-RPP: | D4: Non-RPP (Other) | O4: RPP / Non-RPP: | P4: Non-RPP (Other)
C5: Consumption | D5: 1245322 | E5: kWh | O5: Consumption | P5: 1245322 | Q5: kWh
C6: Demand | D6: 2822 | E6: kW | O6: Demand | P6: 2822 | Q6: kW
C7: Current Loss Factor | D7: 1.0388 | O7: Current Loss Factor | P7: 1.0388
C8: Proposed/Approved Loss Factor | D8: 1.0388 | O8: Proposed/Approved Loss Factor | P8: 1.0388
E10: Current OEB-Approved | H10: Proposed | K10: Impact | Q10: Current OEB-Approved | T10: Proposed | W10: Impact
E11: Rate | F11: Volume | G11: Charge | H11: Rate | I11: Volume | J11: Charge | K11: $ Change | L11: % Change | Q11: Rate | R11: Volume | S11: Charge | T11: Rate | U11: Volume | V11: Charge | W11: $ Change | X11: % Change
E12: ($) | G12: ($) | H12: ($) | J12: ($) | Q12: ($) | S12: ($) | T12: ($) | V12: ($)
C13: Monthly Service Charge | E13: 6037.86 | F13: 1 | G13: =E13*F13 -> 6037.86 | H13: 6255.22 | I13: 1 | J13: =H13*I13 -> 6255.22 | K13: =J13-G13 -> 217.36 | L13: =IF(G13<>0,K13/G13,0) -> 0.03599950976 | O13: Monthly Service Charge | Q13: 6037.86 | R13: 1 | S13: =Q13*R13 -> 6037.86 | T13: ='GS>3000 kW '!S6 -> 6472.58 | U13: 1 | V13: =T13*U13 -> 6472.58 | W13: =V13-S13 -> 434.72 | X13: =IF(S13<>0,W13/S13,0) -> 0.07199901952
C14: Distribution Volumetric Rate | E14: 2.235 | F14: 2822 | G14: =E14*F14 -> 6307.17 | H14: 2.3155 | I14: 2822 | J14: =H14*I14 -> 6534.341 | K14: =J14-G14 -> 227.171 | L14: 0.03601789709 | O14: Distribution Volumetric Rate | Q14: 2.235 | R14: 2822 | S14: =Q14*R14 -> 6307.17 | T14: ='GS>3000 kW '!S8 -> 2.396 | U14: 2822 | V14: =T14*U14 -> 6761.512 | W14: =V14-S14 -> 454.342 | X14: 0.07203579418
C15: RRRP Credit | F15: 2822 | G15: 0 | I15: 2822 | J15: 0 | K15: 0 | L15: 0 | O15: RRRP Credit | R15: 2822 | S15: 0 | U15: 2822 | V15: 0 | W15: 0 | X15: 0
C16: DRP Adjustment | F16: 2822 | G16: 0 | I16: 2822 | J16: 0 | K16: 0 | L16: 0 | O16: DRP Adjustment | R16: 2822 | S16: 0 | U16: 2822 | V16: 0 | W16: 0 | X16: 0
C17: Fixed Rate Riders | E17: 0 | F17: 1 | G17: 0 | H17: 79.46 | I17: 1 | J17: 79.46 | K17: 79.46 | L17: 0 | O17: Fixed Rate Riders | Q17: 0 | R17: 1 | S17: 0 | T17: ='GS>3000 kW '!S7 -> 158.92 | U17: 1 | V17: 158.92 | W17: 158.92 | X17: 0
C18: Volumetric Rate Riders | E18: 0 | F18: 2822 | G18: 0 | H18: 0.0296 | I18: 2822 | J18: 83.5312 | K18: 83.5312 | L18: 0 | O18: Volumetric Rate Riders | Q18: 0 | R18: 2822 | S18: 0 | T18: ='GS>3000 kW '!S13 -> 0.0592 | U18: 2822 | V18: 167.0624 | W18: 167.0624 | X18: 0
C19: Sub-Total A (excluding pass through) | G19: =SUM(G13:G18) -> 12345.03 | J19: =SUM(J13:J18) -> 12952.5522 | K19: 607.5222 | L19: 0.04921188527 | O19: Sub-Total A (excluding pass through) | S19: =SUM(S13:S18) -> 12345.03 | V19: =SUM(V13:V18) -> 13560.0744 | W19: 1215.0444 | X19: 0.09842377054
C20: Line Losses on Cost of Power | E20: 0 | F20: 0 | G20: =E20*F20 -> 0 | H20: 0 | I20: 0 | J20: =H20*I20 -> 0 | K20: 0 | L20: 0 | O20: Line Losses on Cost of Power | Q20: 0 | R20: 0 | S20: =Q20*R20 -> 0 | T20: 0 | U20: 0 | V20: =T20*U20 -> 0 | W20: 0 | X20: 0
C21: Total Deferral/Variance Account Rate Riders | E21: 0.4584 | F21: 2822 | G21: =E21*F21 -> 1293.6048 | H21: 0.9539 | I21: 2822 | J21: =H21*I21 -> 2691.9058 | K21: 1398.301 | L21: 1.080933682 | O21: Total Deferral/Variance Account Rate Riders | Q21: 0.4584 | R21: 2822 | S21: =Q21*R21 -> 1293.6048 | T21: =SUM('GS>3000 kW '!S11:S12) -> 1.4074 | U21: 2822 | V21: =T21*U21 -> 3971.6828 | W21: 2678.078 | X21: 2.070244328
C22: CBR Class B Rate Riders | E22: 0 | F22: 2822 | G22: 0 | H22: 0 | I22: 2822 | J22: 0 | K22: 0 | L22: 0 | O22: CBR Class B Rate Riders | Q22: 0 | R22: 2822 | S22: 0 | T22: 0 | U22: 2822 | V22: 0 | W22: 0 | X22: 0
C23: GA Rate Riders | E23: 0 | F23: 1245322 | G23: 0 | H23: 0 | I23: 1245322 | J23: 0 | K23: 0 | L23: 0 | O23: GA Rate Riders | Q23: 0 | R23: 1245322 | S23: 0 | T23: 0 | U23: 1245322 | V23: 0 | W23: 0 | X23: 0
C24: Low Voltage Service Charge | E24: 2.1726 | F24: 2822 | G24: 6131.0772 | H24: 2.1726 | I24: 2822 | J24: 6131.0772 | K24: 0 | L24: 0 | O24: Low Voltage Service Charge | Q24: 2.1726 | R24: 2822 | S24: 6131.0772 | T24: ='GS>3000 kW '!S9 -> 2.1726 | U24: 2822 | V24: 6131.0772 | W24: 0 | X24: 0
C25: Smart Meter Entity Charge (if applicable) | E25: 0 | F25: 1 | G25: 0 | H25: 0 | I25: 1 | J25: 0 | K25: 0 | L25: 0 | O25: Smart Meter Entity Charge (if applicable) | Q25: 0 | R25: 1 | S25: 0 | T25: 0 | U25: 1 | V25: 0 | W25: 0 | X25: 0
C26: Additional Fixed Rate Riders | E26: 0 | F26: 1 | G26: 0 | H26: 0 | I26: 1 | J26: 0 | K26: 0 | L26: 0 | O26: Additional Fixed Rate Riders | Q26: 0 | R26: 1 | S26: 0 | T26: 0 | U26: 1 | V26: 0 | W26: 0 | X26: 0
C27: Additional Volumetric Rate Riders | E27: 0 | F27: 2822 | G27: 0 | H27: 0 | I27: 2822 | J27: 0 | K27: 0 | L27: 0 | O27: Additional Volumetric Rate Riders | Q27: 0 | R27: 2822 | S27: 0 | T27: 0 | U27: 2822 | V27: 0 | W27: 0 | X27: 0
C28: Sub-Total B - Distribution (includes Sub-Total A) | G28: =SUM(G19:G27) -> 19769.712 | J28: =SUM(J19:J27) -> 21775.5352 | K28: 2005.8232 | L28: 0.1014594042 | O28: Sub-Total B - Distribution (includes Sub-Total A) | S28: =SUM(S19:S27) -> 19769.712 | V28: =SUM(V19:V27) -> 23662.8344 | W28: 3893.1224 | X28: 0.1969235768
C29: RTSR - Network | E29: 4.0438 | F29: 2822 | G29: =E29*F29 -> 11411.6036 | H29: 4.3058 | I29: 2822 | J29: =H29*I29 -> 12150.9676 | K29: 739.364 | L29: 0.06479054355 | O29: RTSR - Network | Q29: 4.0438 | R29: 2822 | S29: =Q29*R29 -> 11411.6036 | T29: ='GS>3000 kW '!S15 -> 4.5678 | U29: 2822 | V29: =T29*U29 -> 12890.3316 | W29: 1478.728 | X29: 0.1295810871
C30: RTSR - Connection and/or Line and Transformation Connection | E30: 3.3976 | F30: 2822 | G30: =E30*F30 -> 9588.0272 | H30: 3.516 | I30: 2822 | J30: =H30*I30 -> 9922.152 | K30: 334.1248 | L30: 0.03484812809 | O30: RTSR - Connection and/or Line and Transformation Connection | Q30: 3.3976 | R30: 2822 | S30: =Q30*R30 -> 9588.0272 | T30: ='GS>3000 kW '!S16 -> 3.6344 | U30: 2822 | V30: =T30*U30 -> 10256.2768 | W30: 668.2496 | X30: 0.06969625618
C31: Sub-Total C - Delivery (including Sub-Total B) | G31: =SUM(G28:G30) -> 40769.3428 | J31: =SUM(J28:J30) -> 43848.6548 | K31: 3079.312 | L31: 0.07553008679 | O31: Sub-Total C - Delivery (including Sub-Total B) | S31: =SUM(S28:S30) -> 40769.3428 | V31: =SUM(V28:V30) -> 46809.4428 | W31: 6040.1 | X31: 0.1481529891
C32: Wholesale Market Service Charge (WMSC) | E32: 0.0045 | F32: 1293640.494 | G32: =E32*F32 -> 5821.382221 | H32: 0.0045 | I32: 1293640.494 | J32: =H32*I32 -> 5821.382221 | K32: 0 | L32: 0 | O32: Wholesale Market Service Charge (WMSC) | Q32: 0.0045 | R32: 1293640.494 | S32: =Q32*R32 -> 5821.382221 | T32: 0.0045 | U32: 1293640.494 | V32: =T32*U32 -> 5821.382221 | W32: 0 | X32: 0
C33: Rural and Remote Rate Protection (RRRP) | E33: 0.0015 | F33: 1293640.494 | G33: =E33*F33 -> 1940.46074 | H33: 0.0015 | I33: 1293640.494 | J33: =H33*I33 -> 1940.46074 | K33: 0 | L33: 0 | O33: Rural and Remote Rate Protection (RRRP) | Q33: 0.0015 | R33: 1293640.494 | S33: =Q33*R33 -> 1940.46074 | T33: 0.0015 | U33: 1293640.494 | V33: =T33*U33 -> 1940.46074 | W33: 0 | X33: 0
C34: Standard Supply Service Charge | E34: 0.25 | F34: 1 | G34: 0.25 | H34: 0.25 | I34: 1 | J34: 0.25 | K34: 0 | L34: 0 | O34: Standard Supply Service Charge | Q34: 0.25 | R34: 1 | S34: 0.25 | T34: 0.25 | U34: 1 | V34: 0.25 | W34: 0 | X34: 0
C35: Ontario Electricity Support Program (OESP) | G35: 0 | J35: 0 | K35: 0 | L35: 0 | O35: Ontario Electricity Support Program (OESP) | S35: 0 | V35: 0 | W35: 0 | X35: 0
C36: TOU - Off Peak | E36: 0.076 | F36: 827929.9159 | G36: 62922.67361 | H36: 0.076 | I36: 827929.9159 | J36: 62922.67361 | K36: 0 | L36: 0 | O36: TOU - Off Peak | Q36: 0.076 | R36: 827929.9159 | S36: 62922.67361 | T36: 0.076 | U36: 827929.9159 | V36: 62922.67361 | W36: 0 | X36: 0
C37: TOU - Mid Peak | E37: 0.122 | F37: 232855.2888 | G37: 28408.34524 | H37: 0.122 | I37: 232855.2888 | J37: 28408.34524 | K37: 0 | L37: 0 | O37: TOU - Mid Peak | Q37: 0.122 | R37: 232855.2888 | S37: 28408.34524 | T37: 0.122 | U37: 232855.2888 | V37: 28408.34524 | W37: 0 | X37: 0
C38: TOU - On Peak | E38: 0.158 | F38: 232855.2888 | G38: 36791.13564 | H38: 0.158 | I38: 232855.2888 | J38: 36791.13564 | K38: 0 | L38: 0 | O38: TOU - On Peak | Q38: 0.158 | R38: 232855.2888 | S38: 36791.13564 | T38: 0.158 | U38: 232855.2888 | V38: 36791.13564 | W38: 0 | X38: 0
C39: Non-RPP Retailer Avg. Price | E39: 0.1076 | F39: 1293640.494 | G39: 139195.7171 | H39: 0.1076 | I39: 1293640.494 | J39: 139195.7171 | K39: 0 | L39: 0 | O39: Non-RPP Retailer Avg. Price | Q39: 0.1076 | R39: 1293640.494 | S39: 139195.7171 | T39: 0.1076 | U39: 1293640.494 | V39: 139195.7171 | W39: 0 | X39: 0
C40: Average IESO Wholesale Market Price | E40: 0.1076 | F40: 1293640.494 | G40: 139195.7171 | H40: 0.1076 | I40: 1293640.494 | J40: 139195.7171 | K40: 0 | L40: 0 | O40: Average IESO Wholesale Market Price | Q40: 0.1076 | R40: 1293640.494 | S40: 139195.7171 | T40: 0.1076 | U40: 1293640.494 | V40: 139195.7171 | W40: 0 | X40: 0
K41: 0 | L41: 0 | W41: 0 | X41: 0
C42: Total Bill on TOU (before Taxes) | G42: =SUM(G31:G38) -> 176653.5902 | J42: =SUM(J31:J38) -> 179732.9022 | K42: 3079.312 | L42: 0.01743135815 | O42: Total Bill on TOU (before Taxes) | S42: =SUM(S31:S38) -> 176653.5902 | V42: =SUM(V31:V38) -> 182693.6902 | W42: 6040.1 | X42: 0.03419177607
C43: HST | E43: 0.13 | G43: =G42*E43 -> 22964.96673 | H43: 0.13 | J43: =J42*H43 -> 23365.27729 | K43: 400.31056 | L43: 0.01743135815 | O43: HST | Q43: 0.13 | S43: =S42*Q43 -> 22964.96673 | T43: 0.13 | V43: =V42*T43 -> 23750.17973 | W43: 785.213 | X43: 0.03419177607
C44: Ontario Electricity Rebate | E44: 0.131 | G44: =-G42*E44 -> -23141.62032 | H44: 0.131 | J44: =-J42*H44 -> -23545.01019 | K44: -403.389872 | L44: 0.01743135815 | O44: Ontario Electricity Rebate | Q44: 0.131 | S44: =-S42*Q44 -> -23141.62032 | T44: 0.131 | V44: =-V42*T44 -> -23932.87342 | W44: -791.2531 | X44: 0.03419177607
C45: Total Bill on TOU | G45: =SUM(G42:G44) -> 176476.9367 | J45: =SUM(J42:J44) -> 179553.1693 | K45: 3076.232688 | L45: 0.01743135815 | O45: Total Bill on TOU | S45: =SUM(S42:S44) -> 176476.9367 | V45: =SUM(V42:V44) -> 182510.9966 | W45: 6034.0599 | X45: 0.03419177607
C47: Total Bill on Non-RPP Avg. Price | G47: =SUM(G31:G35,G39) -> 187727.1529 | J47: =SUM(J31:J35,J39) -> 190806.4649 | K47: =SUM(K31:K35,K39) -> 3079.312 | L47: 0.01640312524 | O47: Total Bill on Non-RPP Avg. Price | S47: =SUM(S31:S35,S39) -> 187727.1529 | V47: =SUM(V31:V35,V39) -> 193767.2529 | W47: =SUM(W31:W35,W39) -> 6040.1 | X47: =IF(S47<>0,W47/S47,0) -> 0.03217488737
C48: HST | E48: 0.13 | G48: =G47*E48 -> 24404.52987 | H48: 0.13 | J48: =J47*H48 -> 24804.84043 | K48: =J48-G48 -> 400.31056 | L48: 0.01640312524 | O48: HST | Q48: 0.13 | S48: =S47*Q48 -> 24404.52987 | T48: 0.13 | V48: =V47*T48 -> 25189.74287 | W48: =V48-S48 -> 785.213 | X48: 0.03217488737
C49: Ontario Electricity Rebate | E49: 0 | G49: =-G47*E49 -> 0 | H49: 0 | J49: =-J47*H49 -> 0 | K49: 0 | L49: 0 | O49: Ontario Electricity Rebate | Q49: 0.131 | S49: =-S47*Q49 -> -24592.25703 | T49: 0.131 | V49: =-V47*T49 -> -25383.51013 | W49: -791.2531 | X49: 0.03217488737
C50: Total Bill on Non-RPP Avg. Price | G50: =SUM(G47:G49) -> 212131.6827 | J50: =SUM(J47:J49) -> 215611.3053 | K50: -8572.992696 | L50: -0.04041354212 | O50: Total Bill on Non-RPP Avg. Price | S50: =SUM(S47:S49) -> 187539.4257 | V50: =SUM(V47:V49) -> 193573.4856 | W50: -8572.992696 | X50: -0.04571301561
C52: Total Bill on Average IESO Wholesale Market Price | G52: =SUM(G31:G35,G40) -> 187727.1529 | J52: =SUM(J31:J35,J40) -> 190806.4649 | K52: =SUM(K31:K35,K40) -> 3079.312 | L52: 0.01640312524 | O52: Total Bill on Average IESO Wholesale Market Price | S52: =SUM(S31:S35,S40) -> 187727.1529 | V52: =SUM(V31:V35,V40) -> 193767.2529 | W52: =SUM(W31:W35,W40) -> 6040.1 | X52: =IF(S52<>0,W52/S52,0) -> 0.03217488737
C53: HST | E53: 0.13 | G53: =G52*E53 -> 24404.52987 | H53: 0.13 | J53: =J52*H53 -> 24804.84043 | K53: =J53-G53 -> 400.31056 | L53: 0.01640312524 | O53: HST | Q53: 0.13 | S53: =S52*Q53 -> 24404.52987 | T53: 0.13 | V53: =V52*T53 -> 25189.74287 | W53: =V53-S53 -> 785.213 | X53: 0.03217488737
C54: Ontario Electricity Rebate | E54: 0 | G54: =-G52*E54 -> 0 | H54: 0 | J54: =-J52*H54 -> 0 | K54: 0 | L54: 0 | O54: Ontario Electricity Rebate | Q54: 0.131 | S54: =-S52*Q54 -> -24592.25703 | T54: 0.131 | V54: =-V52*T54 -> -25383.51013 | W54: -791.2531 | X54: 0.03217488737
C55: Total Bill on Average IESO Wholesale Market Price | G55: =SUM(G52:G54) -> 212131.6827 | J55: =SUM(J52:J54) -> 215611.3053 | K55: =SUM(K52:K54) -> 3479.62256 | L55: 0.01640312524 | O55: Total Bill on Average IESO Wholesale Market Price | S55: =SUM(S52:S54) -> 187539.4257 | V55: =SUM(V52:V54) -> 193573.4856 | W55: =SUM(W52:W54) -> 6034.0599 | X55: 0.03217488737
